Workbook

Sheet 2022年
A1: 沅江市2022年度巩固拓展脱贫攻坚成果和乡村振兴项目库
A3: 单位：（盖章） 时间：2022年8月20日
A5: 序号 | B5: 项目类别 | E5: 乡 | F5: 村 | G5: 项目名称 | H5: 建设性质 | I5: 实施地点 | J5: 时间进度 | L5: 责任单位 | M5: 建设内容及规模 | N5: 资金规模和筹资方式 | S5: 受益对象 | Y5: 绩效目标 | Z5: 联农带农机制 | AA5: 备注
B6: 项目类型 | C6: 二级项目类型 | D6: 项目子类型 | J6: 计划开工时间 | K6: 计划完工时间 | N6: 项目预算总投资（万元） | O6: 其中 | S6: 受益村数（个） | T6: 受益户数（户） | U6: 受益人口数（人） | V6: 其中
O7: 财政衔接资金（万元） | P7: 除财政衔接资金外的统筹整资金（万元） | Q7: 其他财政资金（万元） | R7: 其他筹措资金（万元） | V7: 受益脱贫村数（个） | W7: 受益脱贫户数及防止返贫监测对象户数（户） | X7: 受益脱贫人口数及防止返贫监测对象人口数（人） | AB7: 计划文 | AD7: 资金文
A8: 1 | B8: 乡村建设行动 | C8: 农村基础设施 | D8: 农村道路建设 | E8: 琼湖街道 | F8: 九只树村 | G8: 九只树村李家湾组至夏家桥组公路扩宽 | H8: 改扩建 | I8: 九只树村 | J8: 2022-01-01 | K8: 2022-04-06 | L8: 乡村振兴局 | M8: 1.5公里道路扩宽 | N8: =O8+P8+Q8+R8 -> 30 | O8: 30 | R8: 0 | S8: 1 | T8: 53 | U8: 124 | V8: 1 | W8: 53 | X8: 124 | Y8: 满意度指标、服务对象满意度指标、受益建档立卡贫困人口满意度≥95% | Z8: ①完善村级基础设施，提高群众生产生活水平；
A9: 2 | B9: 乡村建设行动 | C9: 农村基础设施 | D9: 农村道路建设 | E9: 琼湖街道 | F9: 九只树村 | G9: 老屋湾组道路扩宽 | H9: 改扩建 | I9: 九只树村 | J9: 2022-01-05 | K9: 2022-05-05 | L9: 乡村振兴局 | M9: 1公里道路扩宽 | N9: =O9+P9+Q9+R9 -> 20 | O9: 20 | R9: 0 | S9: 1 | T9: 53 | U9: 124 | V9: 1 | W9: 53 | X9: 124 | Y9: 满意度指标、服务对象满意度指标、受益建档立卡贫困人口满意度≥95% | Z9: ①完善村级基础设施，提高群众生产生活水平；
A10: 3 | B10: 乡村建设行动 | C10: 农村基础设施 | D10: 农村道路建设 | E10: 琼湖街道 | F10: 九只树村 | G10: 蔡家坝至横冲组公路扩宽 | H10: 改扩建 | I10: 九只树村 | J10: 2022-01-05 | K10: 2022-05-05 | L10: 乡村振兴局 | M10: 1.8公里道路扩宽 | N10: =O10+P10+Q10+R10 -> 25 | O10: 25 | R10: 0 | S10: 1 | T10: 53 | U10: 124 | V10: 1 | W10: 53 | X10: 124 | Y10: 满意度指标、服务对象满意度指标、受益建档立卡贫困人口满意度≥95% | Z10: ①完善村级基础设施，提高群众生产生活水平；
A11: 4 | B11: 乡村建设行动 | C11: 农村基础设施 | D11: 农村道路建设 | E11: 琼湖街道 | F11: 九只树村 | G11: 横冲组至新屋湾组公路扩宽 | H11: 改扩建 | I11: 九只树村 | J11: 2022-01-05 | K11: 2022-05-05 | L11: 乡村振兴局 | M11: 2公里道路扩宽 | N11: =O11+P11+Q11+R11 -> 40 | O11: 40 | R11: 0 | S11: 1 | T11: 53 | U11: 124 | V11: 1 | W11: 53 | X11: 124 | Y11: 满意度指标、服务对象满意度指标、受益建档立卡贫困人口满意度≥95% | Z11: ①完善村级基础设施，提高群众生产生活水平；
A12: 5 | B12: 产业发展项目 | C12: 配套基础 | D12: 小型农田水利设施建设 | E12: 琼湖街道 | F12: 九只树村 | G12: 柳家塘组渠道改建 | H12: 改扩建 | I12: 九只树村 | J12: 2022-01-05 | K12: 2022-05-05 | L12: 乡村振兴局 | M12: 0.6公里 | N12: =O12+P12+Q12+R12 -> 12 | O12: 12 | R12: 0 | S12: 1 | T12: 53 | U12: 124 | V12: 1 | W12: 53 | X12: 124 | Y12: 满意度指标、服务对象满意度指标、受益建档立卡贫困人口满意度≥95% | Z12: ①完善村级基础设施，提高群众生产生活水平；
A13: 6 | B13: 乡村建设行动 | C13: 农村基础设施 | D13: 农村道路建设 | E13: 琼湖街道 | F13: 九只树村 | G13: 老屋湾组道路建设 | H13: 新建 | I13: 九只树村 | J13: 2022-01-05 | K13: 2022-05-05 | L13: 乡村振兴局 | M13: 1公里道路建设 | N13: =O13+P13+Q13+R13 -> 12 | O13: 12 | R13: 0 | S13: 1 | T13: 53 | U13: 124 | V13: 1 | W13: 53 | X13: 124 | Y13: 满意度指标、服务对象满意度指标、受益建档立卡贫困人口满意度≥95% | Z13: ①完善村级基础设施，提高群众生产生活水平；
A14: 7 | B14: 乡村建设行动 | C14: 农村基础设施 | D14: 农村道路建设 | E14: 琼湖街道 | F14: 九只树村 | G14: 九只树组至横冲组道路建设 | H14: 新建 | I14: 九只树村 | J14: 2022-01-05 | K14: 2022-05-05 | L14: 乡村振兴局 | M14: 1.8公里道路建设 | N14: =O14+P14+Q14+R14 -> 20 | O14: 20 | R14: 0 | S14: 1 | T14: 53 | U14: 124 | V14: 1 | W14: 53 | X14: 124 | Y14: 满意度指标、服务对象满意度指标、受益建档立卡贫困人口满意度≥95% | Z14: ①完善村级基础设施，提高群众生产生活水平；
A15: 8 | B15: 乡村建设行动 | C15: 农村基础设施 | D15: 农村道路建设 | E15: 琼湖街道 | F15: 九只树村 | G15: 横冲至新屋湾组道路建设 | H15: 新建 | I15: 九只树村 | J15: 2022-01-05 | K15: 2022-05-05 | L15: 乡村振兴局 | M15: 2公里道路建设 | N15: =O15+P15+Q15+R15 -> 24 | O15: 24 | R15: 0 | S15: 1 | T15: 53 | U15: 124 | V15: 1 | W15: 53 | X15: 124 | Y15: 满意度指标、服务对象满意度指标、受益建档立卡贫困人口满意度≥95% | Z15: ①完善村级基础设施，提高群众生产生活水平；
A16: 9 | B16: 乡村建设行动 | C16: 农村基础设施 | D16: 农村道路建设 | E16: 琼湖街道 | F16: 九只树村 | G16: 李家湾至夏家桥组道路建设 | H16: 新建 | I16: 九只树村 | J16: 2022-01-05 | K16: 2022-05-05 | L16: 乡村振兴局 | M16: 1.5公里道路建设 | N16: =O16+P16+Q16+R16 -> 16 | O16: 16 | R16: 0 | S16: 1 | T16: 53 | U16: 124 | V16: 1 | W16: 53 | X16: 124 | Y16: 满意度指标、服务对象满意度指标、受益建档立卡贫困人口满意度≥95% | Z16: ①完善村级基础设施，提高群众生产生活水平；
A17: 10 | B17: 乡村建设行动 | C17: 农村基础设施 | D17: 农村道路建设 | E17: 琼湖街道 | F17: 九只树村 | G17: 村口至村部道路建设 | H17: 新建 | I17: 九只树村 | J17: 2022-01-05 | K17: 2022-05-05 | L17: 乡村振兴局 | M17: 1公里道路建设 | N17: =O17+P17+Q17+R17 -> 60 | O17: 60 | R17: 0 | S17: 1 | T17: 53 | U17: 124 | V17: 1 | W17: 53 | X17: 124 | Y17: 满意度指标、服务对象满意度指标、受益建档立卡贫困人口满意度≥95% | Z17: ①完善村级基础设施，提高群众生产生活水平；
A18: 11 | B18: 乡村建设行动 | C18: 农村基础设施 | D18: 农村道路建设 | E18: 琼湖街道 | F18: 九只树村 | G18: 村部至夏家桥道路建设 | H18: 新建 | I18: 九只树村 | J18: 2022-01-05 | K18: 2022-05-05 | L18: 乡村振兴局 | M18: 2公里道路建设 | N18: =O18+P18+Q18+R18 -> 120 | O18: 120 | R18: 0 | S18: 1 | T18: 53 | U18: 124 | V18: 1 | W18: 53 | X18: 124 | Y18: 满意度指标、服务对象满意度指标、受益建档立卡贫困人口满意度≥95% | Z18: ①完善村级基础设施，提高群众生产生活水平；
A19: 12 | B19: 乡村建设行动 | C19: 农村基础设施 | D19: 农村道路建设 | E19: 琼湖街道 | F19: 九只树村 | G19: 老屋湾组道路建设 | H19: 新建 | I19: 九只树村 | J19: 2022-01-05 | K19: 2022-05-05 | L19: 乡村振兴局 | M19: 1公里道路建设 | N19: =O19+P19+Q19+R19 -> 60 | O19: 60 | R19: 0 | S19: 1 | T19: 53 | U19: 124 | V19: 1 | W19: 53 | X19: 124 | Y19: 满意度指标、服务对象满意度指标、受益建档立卡贫困人口满意度≥95% | Z19: ①完善村级基础设施，提高群众生产生活水平；
A20: 13 | B20: 乡村建设行动 | C20: 农村基础设施 | D20: 农村道路建设 | E20: 琼湖街道 | F20: 九只树村 | G20: 九只树组道路建设 | H20: 新建 | I20: 九只树村 | J20: 2022-01-05 | K20: 2022-05-05 | L20: 乡村振兴局 | M20: 1公里道路建设 | N20: =O20+P20+Q20+R20 -> 60 | O20: 60 | R20: 0 | S20: 1 | T20: 53 | U20: 124 | V20: 1 | W20: 53 | X20: 124 | Y20: 满意度指标、服务对象满意度指标、受益建档立卡贫困人口满意度≥95% | Z20: ①完善村级基础设施，提高群众生产生活水平；
A21: 14 | B21: 乡村建设行动 | C21: 农村基础设施 | D21: 农村道路建设 | E21: 琼湖街道 | F21: 九只树村 | G21: 蔡家坝至横冲组道路建设 | H21: 新建 | I21: 九只树村 | J21: 2022-01-05 | K21: 2022-05-05 | L21: 乡村振兴局 | M21: 1.8公道路建设 | N21: =O21+P21+Q21+R21 -> 108 | O21: 108 | R21: 0 | S21: 1 | T21: 53 | U21: 124 | V21: 1 | W21: 53 | X21: 124 | Y21: 满意度指标、服务对象满意度指标、受益建档立卡贫困人口满意度≥95% | Z21: ①完善村级基础设施，提高群众生产生活水平；
A22: 15 | B22: 乡村建设行动 | C22: 农村基础设施 | D22: 农村道路建设 | E22: 琼湖街道 | F22: 九只树村 | G22: 横冲组至新屋湾组道路建设 | H22: 新建 | I22: 九只树村 | J22: 2022-01-05 | K22: 2022-05-05 | L22: 乡村振兴局 | M22: 2公里道路建设 | N22: =O22+P22+Q22+R22 -> 120 | O22: 120 | R22: 0 | S22: 1 | T22: 53 | U22: 124 | V22: 1 | W22: 53 | X22: 124 | Y22: 满意度指标、服务对象满意度指标、受益建档立卡贫困人口满意度≥95% | Z22: ①完善村级基础设施，提高群众生产生活水平；
A23: 16 | B23: 产业发展项目 | C23: 配套基础 | D23: 小型农田水利设施建设 | E23: 琼湖街道 | F23: 保民村 | G23: 保民新建组至西甲组渠道衬砌 | H23: 新建 | I23: 保民村 | J23: 2022-08-01 | K23: 2022-12-01 | L23: 乡村振兴局 | M23: 渠道衬砌 | N23: =O23+P23+Q23+R23 -> 20 | O23: 20 | R23: 0 | S23: 1 | T23: 101 | U23: 263 | V23: 1 | W23: 3 | X23: 6 | Y23: 提高农田灌溉效率 | Z23: 方便群众农田灌溉
A24: 17 | B24: 产业发展项目 | C24: 配套基础 | D24: 小型农田水利设施建设 | E24: 琼湖街道 | F24: 保民村 | G24: 保民村西甲组排水沟疏浚 | H24: 新建 | I24: 保民村 | J24: 2022-08-01 | K24: 2022-12-01 | L24: 乡村振兴局 | M24: 渠道疏浚、清淤等 | N24: =O24+P24+Q24+R24 -> 30 | O24: 30 | R24: 0 | S24: 1 | T24: 101 | U24: 263 | V24: 1 | W24: 3 | X24: 6 | Y24: 提高农田灌溉效率 | Z24: 方便群众农田灌溉
A25: 18 | B25: 产业发展项目 | C25: 配套基础 | D25: 小型农田水利设施建设 | E25: 琼湖街道 | F25: 保民村 | G25: 保民龙头组至红旗组灌渠衬砌 | H25: 新建 | I25: 保民村 | J25: 2022-08-01 | K25: 2022-12-01 | L25: 乡村振兴局 | M25: 灌渠衬砌 | N25: =O25+P25+Q25+R25 -> 40 | O25: 40 | R25: 0 | S25: 1 | T25: 101 | U25: 263 | V25: 1 | W25: 3 | X25: 6 | Y25: 提高农田灌溉效率 | Z25: 方便群众农田灌溉
A26: 19 | B26: 产业发展项目 | C26: 配套基础 | D26: 小型农田水利设施建设 | E26: 琼湖街道 | F26: 保民村 | G26: 保民村机埠维护 | H26: 新建 | I26: 保民村 | J26: 2022-08-01 | K26: 2022-12-01 | L26: 乡村振兴局 | M26: 机埠维护 | N26: =O26+P26+Q26+R26 -> 27 | O26: 27 | R26: 0 | S26: 1 | T26: 101 | U26: 263 | V26: 1 | W26: 3 | X26: 6 | Y26: 提高农田灌溉效率 | Z26: 方便群众农田灌溉
A27: 20 | B27: 乡村建设行动 | C27: 农村基础设施 | D27: 农村道路建设 | E27: 琼湖街道 | F27: 九只树村 | G27: 九只树村塘角上组通组道路拓宽 | H27: 改扩建 | I27: 九只树村 | J27: 2022-08-01 | K27: 2022-11-01 | L27: 乡村振兴局 | M27: 道路拓宽 | N27: =O27+P27+Q27+R27 -> 10 | O27: 10 | R27: 0 | S27: 1 | T27: 53 | U27: 126 | V27: 1 | W27: 5 | X27: 8 | Y27: 方便群众生产生活 | Z27: 方便群众生产生活
A28: 21 | B28: 产业发展项目 | C28: 配套基础 | D28: 小型农田水利设施建设 | E28: 琼湖街道 | F28: 保民村 | G28: 保民村机埠改造 | H28: 改扩建 | I28: 全村 | J28: 2022-08-01 | K28: 2022-12-01 | L28: 乡村振兴局 | M28: 抗旱机埠 | N28: =O28+P28+Q28+R28 -> 9 | O28: 9 | R28: 0 | S28: 1 | T28: 103 | U28: 257 | V28: 1 | W28: 3 | X28: 6 | Y28: 提高农田灌溉效率 | Z28: 提高农田防汛抗旱能力，保障农业生产
A29: 22 | B29: 产业发展项目 | C29: 配套基础 | D29: 小型农田水利设施建设 | E29: 琼湖街道 | F29: 万子湖村 | G29: 琼湖街道万子湖村沟渠清淤 | H29: 新建 | I29: 万子湖村渔场附近路段 | J29: 2022-08-01 | K29: 2022-09-01 | L29: 乡村振兴局 | M29: 沟渠疏通 | N29: =O29+P29+Q29+R29 -> 5 | O29: 5 | R29: 0 | S29: 1 | T29: 3 | U29: 8 | V29: 0 | W29: 0 | X29: 0 | Y29: 提高农田灌溉效率 | Z29: 提高沿线农田防汛抗旱能力，保障农业生产
A30: 23 | B30: 乡村建设行动 | C30: 农村基础设施 | D30: 农村道路建设 | E30: 琼湖街道 | F30: 保民村 | G30: 保民村防洪大堤加固 | H30: 改扩建 | I30: 保民村小河组 | J30: 2022-08-01 | K30: 2022-12-01 | L30: 乡村振兴局 | M30: 土方加固 | N30: =O30+P30+Q30+R30 -> 8 | O30: 8 | R30: 0 | S30: 1 | T30: 103 | U30: 257 | V30: 1 | W30: 3 | X30: 6 | Y30: 提高农田灌溉效率 | Z30: 提高抗洪防汛能力，维护垸内生命财产安全
A31: 24 | B31: 乡村建设行动 | C31: 农村基础设施 | D31: 农村供水保障设施建设 | E31: 琼湖街道 | F31: 榨南湖村 | G31: 榨南湖村自来水厂改扩建 | H31: 改扩建 | I31: 榨南湖村 | J31: 2022-07-01 | K31: 2022-09-01 | L31: 乡村振兴局 | M31: 自来水厂设施、设备维护 | N31: =O31+P31+Q31+R31 -> 10 | O31: 10 | R31: 0 | S31: 1 | T31: 58 | U31: 162 | V31: 0 | W31: 0 | X31: 0 | Y31: 解决全村饮水安全 | Z31: ①完善村级基础设施，提高群众生产生活水平；
A32: 25 | B32: 产业发展项目 | C32: 生产项目 | D32: 种植业基地 | E32: 琼湖街道 | F32: 保民村 | G32: 油菜籽深加工产业配套设施建设 | H32: 改扩建 | I32: 保民村 | J32: 2022-02-01 | K32: 2022-10-01 | L32: 乡村振兴局 | M32: 加工基地、仓库、榨油坊等建设 | N32: =O32+P32+Q32+R32 -> 10 | O32: 10 | R32: 0 | S32: 1 | T32: 101 | U32: 263 | V32: 1 | W32: 3 | X32: 6 | Y32: 提高村级集体经济收入、农户增收 | Z32: 提高村级集体经济收入 | AB32: 沅振发〔2022〕1号 | AC32: 10 | AD32: 沅财农指〔2022〕2号
A33: 26 | B33: 产业发展项目 | C33: 生产项目 | D33: 种植业基地 | E33: 琼湖街道 | F33: 九只树村 | G33: 九只树塘角上组品种改良配套设施建设 | H33: 新建 | I33: 九只树村 | J33: 2022-02-01 | K33: 2022-05-01 | L33: 乡村振兴局 | M33: 碧根果种植项目土地流转、平整等 | N33: =O33+P33+Q33+R33 -> 20 | O33: 20 | R33: 0 | S33: 1 | T33: 53 | U33: 126 | V33: 1 | W33: 5 | X33: 8 | Y33: 提高村级集体经济收入、农户增收 | Z33: 提高土地利用效率、农户增收 | AB33: 沅振发〔2022〕1号 | AC33: 20 | AD33: 沅财农指〔2022〕2号
A34: 27 | B34: 产业发展项目 | C34: 生产项目 | D34: 水产养殖业发展 | E34: 琼湖街道 | F34: 管竹山村 | G34: 管竹山垸内集体鱼塘护坡 | H34: 改扩建 | I34: 管竹山村 | J34: 2022-02-01 | K34: 2022-05-01 | L34: 乡村振兴局 | M34: 300米*2.6米鱼塘护坡 | N34: =O34+P34+Q34+R34 -> 5 | O34: 5 | R34: 0 | S34: 1 | T34: 33 | U34: 80 | V34: 1 | W34: 0 | X34: 0 | Y34: 提高村级集体经济收入 | Z34: 提高村级集体经济收入 | AB34: 沅振发〔2022〕1号 | AC34: 5 | AD34: 沅财农指〔2022〕2号
A35: 28 | B35: 乡村建设行动 | C35: 农村基础设施 | D35: 农村道路建设 | E35: 琼湖街道 | F35: 澎湖村 | G35: 加兴、小口塞、车洲片道路维护 | H35: 改扩建 | I35: 澎湖村 | J35: 2022-02-01 | K35: 2022-06-01 | L35: 乡村振兴局 | M35: 2.8公里道路维护 | N35: =O35+P35+Q35+R35 -> 5 | O35: 5 | R35: 0 | S35: 1 | T35: 18 | U35: 49 | V35: 1 | W35: 0 | X35: 0 | Y35: 方便群众生产生活 | Z35: ①完善村级基础设施，提高群众生产生活水平； | AB35: 沅振发〔2022〕1号 | AC35: 5 | AD35: 沅财农指〔2022〕2号
A36: 29 | B36: 产业发展项目 | C36: 配套设施项目 | D36: 配套设施项目 | E36: 琼湖街道 | F36: 九只树村 | G36: 九只树村产业配套项目 | H36: 新建 | I36: 九只树村 | J36: 2022-08-01 | K36: 2022-12-01 | L36: 九只树村 | M36: 村庄产业配套建设 | N36: =O36+P36+Q36+R36 -> 80 | O36: 80 | R36: 0 | S36: 1 | T36: 56 | U36: 129 | V36: 1 | W36: 54 | X36: 110 | Y36: 完成建设规划内容 | Z36: 通过产业分红和用工用劳 | AB36: 中央602 沅振发〔2022〕5号 | AC36: 80 | AD36: 沅财农指〔2022〕8号
A37: 30 | B37: 乡村建设行动 | C37: 农村基础设施 | D37: 公路建设 | E37: 琼湖街道 | F37: 保民村 | G37: 保民村通组道路建设 | H37: 新建 | I37: 保民村 | J37: 2022-08-01 | K37: 2022-12-01 | L37: 保民村 | M37: 新建道路3.5公里 | N37: =O37+P37+Q37+R37 -> 40 | O37: 40 | R37: 0 | S37: 1 | T37: 108 | U37: 272 | V37: 1 | W37: 18 | X37: 31 | Y37: 完成既定目标 | Z37: 方便群众出行 | AB37: 省第二批沅振发〔2022〕9号 | AC37: 40 | AD37: 沅财农指〔2022〕13号
A38: 31 | B38: 乡村建设行动 | C38: 农村基础设施 | D38: 小型农田水利设施 | E38: 琼湖街道 | F38: 澎湖村 | G38: 琼湖街道2022年澎湖村整修沟渠项目 | H38: 新建 | I38: 澎湖村 | J38: 2022-08-01 | K38: 2022-12-01 | L38: 澎湖村 | M38: 整修沟渠 | N38: 5 | O38: 41 | R38: 0 | S38: 1 | T38: 19 | U38: 51 | V38: 1 | W38: 19 | X38: 51 | Y38: 完成既定目标 | Z38: 提高群众生活水平 | AB38: 沅振发〔2022〕11号 | AC38: 5 | AD38: 沅财农指〔2022〕21号
A39: 32 | B39: 乡村建设行动 | C39: 农村基础设施 | D39: 小型农田水利设施 | E39: 琼湖街道 | F39: 保民村 | G39: 琼湖街道2022年保民村水利设施管道维护 | H39: 新建 | I39: 保民村 | J39: 2022-08-01 | K39: 2022-12-01 | L39: 保民村 | M39: 水利设施管道维护 | N39: 10 | O39: 42 | R39: 0 | S39: 1 | T39: 99 | U39: 251 | V39: 1 | W39: 99 | X39: 251 | Y39: 完成既定目标 | Z39: 提高群众生活水平 | AB39: 县级 | AC39: 10 | AD39: 沅财农指〔2022〕22号
A40: 1 | B40: 乡村建设行动 | C40: 农村基础设施 | D40: 农村道路建设 | E40: 胭脂湖街道 | F40: 黄家湖村 | G40: 黄家湖村公路硬化 | H40: 新建 | I40: 黄家湖村 | J40: 2022-01-01 | K40: 2022-04-01 | L40: 乡村振兴局 | M40: 公路硬化1.5公里 | N40: =O40+P40+Q40+R40 -> 75 | O40: 75 | R40: 0 | S40: 1 | T40: 20 | U40: 115 | V40: 0 | W40: 4 | X40: 18 | Y40: 项目（工程）验收合格率100% | Z40: ①提高群众生产生活水平 ②便利群众出行
A41: 2 | B41: 乡村建设行动 | C41: 农村基础设施 | D41: 其他 | E41: 胭脂湖街道 | F41: 黄家湖村 | G41: 围山圳清淤、公路扫障 | H41: 新建 | I41: 黄家湖村 | J41: 2022-06-01 | K41: 2022-07-01 | L41: 乡村振兴局 | M41: 围山圳清淤、公路扫障9公里 | N41: =O41+P41+Q41+R41 -> 10 | O41: 10 | R41: 0 | S41: 1 | T41: 650 | U41: 2400 | V41: 0 | W41: 36 | X41: 79 | Y41: 项目（工程）验收合格率100% | Z41: ①提高群众生产生活水平 ②便利群众出行
A42: 3 | B42: 乡村建设行动 | C42: 农村基础设施 | D42: 农村道路建设 | E42: 胭脂湖街道 | F42: 回龙山村 | G42: 环湖公路连接 | H42: 新建 | I42: 回龙山村 | J42: 2022-03-01 | K42: 2022-04-01 | L42: 乡村振兴局 | M42: 硬化路面1公里 | N42: =O42+P42+Q42+R42 -> 40 | O42: 40 | R42: 0 | S42: 1 | T42: 33 | U42: 74 | V42: 0 | W42: 33 | X42: 74 | Y42: 项目（工程）验收合格率100% | Z42: ①提高群众生产生活水平 ②便利群众出行
A43: 4 | B43: 乡村建设行动 | C43: 农村基础设施 | D43: 农村道路建设 | E43: 胭脂湖街道 | F43: 荷花村 | G43: 道路硬化 | H43: 新建 | I43: 荷花村 | J43: 2022-01-01 | K43: 2022-04-01 | L43: 乡村振兴局 | M43: 道路硬化3000米 | N43: =O43+P43+Q43+R43 -> 120 | O43: 120 | R43: 0 | S43: 1 | T43: 458 | U43: 1230 | V43: 1 | W43: 25 | X43: 68 | Y43: 项目（工程）验收合格率100% | Z43: ①提高群众生产生活水平 ②便利群众出行
A44: 5 | B44: 乡村建设行动 | C44: 农村基础设施 | D44: 其他 | E44: 胭脂湖街道 | F44: 荷花村 | G44: 山塘改造硬化 | H44: 维修 | I44: 荷花村 | J44: 2022-06-01 | K44: 2022-09-01 | L44: 乡村振兴局 | M44: 山塘改造硬化8口 | N44: =O44+P44+Q44+R44 -> 80 | O44: 80 | R44: 0 | S44: 1 | T44: 135 | U44: 358 | V44: 1 | W44: 10 | X44: 25 | Y44: 项目（工程）验收合格率100% | Z44: ①提高群众生产生活水平 ②提高群众农业生产量
A45: 6 | B45: 乡村建设行动 | C45: 农村基础设施 | D45: 农村道路建设 | E45: 胭脂湖街道 | F45: 荷花村 | G45: 荷花村杨台线公路附属基础设施建设 | H45: 新建 | I45: 杨台线荷花村路段 | J45: 2022-11-01 | K45: 2022-12-01 | L45: 乡村振兴局 | M45: 杨台线公路附属基础设施建设 | N45: =O45+P45+Q45+R45 -> 10 | O45: 10 | R45: 0 | S45: 1 | T45: 210 | U45: 620 | V45: 1 | W45: 33 | X45: 89 | Y45: 满意度指标、服务对象满意度指标、受益建档立卡贫困人口满意度≥100% | Z45: ①完善村级基础设施，提高群众生产生活水平； | AB45: 省级 | AC45: 10 | AD45: 沅财农指〔2022〕29号
A46: 7 | B46: 乡村建设行动 | C46: 农村基础设施 | D46: 其他 | E46: 胭脂湖街道 | F46: 海上社区 | G46: 海上社区渠道维修及清淤 | H46: 改扩建 | I46: 海上社区 | J46: 2022-01-01 | K46: 2022-04-01 | L46: 乡村振兴局 | M46: 渠道维修、渠道清淤 | N46: =O46+P46+Q46+R46 -> 10 | O46: 10 | R46: 0 | S46: 1 | T46: 778 | U46: 2239 | V46: 0 | W46: 107 | X46: 4 | Y46: 项目（工程）验收合格率100% | Z46: ①完善基础设施，提高群众生产生活水平； ②便利群众农业生产
A47: 8 | B47: 产业发展项目 | C47: 生产项目 | D47: 种植业基地 | E47: 胭脂湖街道 | F47: 洞兴村 | G47: 洞兴村柑桔品改 | H47: 新建 | I47: 洞兴村 | J47: 2022-01-01 | K47: 2022-04-01 | L47: 农业农村局 | M47: 柑桔品改100亩 | N47: =O47+P47+Q47+R47 -> 26 | O47: 26 | R47: 0 | S47: 1 | T47: 66 | U47: 352 | V47: 0 | W47: 11 | X47: 25 | Y47: 特色产业带动群众人均累计增加收入≥1000元 | Z47: 带动脱贫户11户25人，人均年增收1000元
A48: 9 | B48: 乡村建设行动 | C48: 农村基础设施 | D48: 农村道路建设 | E48: 胭脂湖街道 | F48: 洞兴村 | G48: 洞兴村公路加宽 | H48: 新建 | I48: 洞兴村 | J48: 2022-01-01 | K48: 2022-04-01 | L48: 乡村振兴局 | M48: 村主要公路加宽1.6公里 | N48: =O48+P48+Q48+R48 -> 166 | O48: 166 | R48: 0 | S48: 1 | T48: 188 | U48: 686 | V48: 0 | W48: 16 | X48: 33 | Y48: 项目（工程）验收合格率100% | Z48: ①提高群众生产生活水平 ②便利群众出行
A49: 10 | B49: 乡村建设行动 | C49: 农村基础设施 | D49: 其他 | E49: 胭脂湖街道 | F49: 洞兴村 | G49: 洞兴村沟渠、山塘清淤、硬化 | H49: 维修 | I49: 洞兴村 | J49: 2022-01-01 | K49: 2022-04-01 | L49: 乡村振兴局 | M49: 沟渠3.6公里、山塘2口清淤、硬化 | N49: =O49+P49+Q49+R49 -> 20 | O49: 20 | R49: 0 | S49: 1 | T49: 620 | U49: 1620 | V49: 0 | W49: 49 | X49: 102 | Y49: 项目（工程）验收合格率100% | Z49: ①提高群众生产生活水平 ②便利群众生产
A50: 11 | B50: 乡村建设行动 | C50: 农村基础设施 | D50: 农村道路建设 | E50: 胭脂湖街道 | F50: 赤塘村 | G50: 村级道路拓宽 | H50: 扩建 | I50: 赤塘村 | J50: 2022-04-01 | K50: 2022-06-01 | L50: 乡村振兴局 | M50: 公路路基拓宽1.5公里 | N50: =O50+P50+Q50+R50 -> 10 | O50: 10 | R50: 0 | S50: 1 | T50: 80 | U50: 189 | V50: 0 | W50: 26 | X50: 53 | Y50: 项目（工程）验收合格率100% | Z50: ①提高群众生产生活水平 ②便利群众出行 | AB50: 沅振发〔2022〕6号 | AC50: 10 | AD50: 沅财农指〔2022〕9号
A51: 12 | B51: 乡村建设行动 | C51: 农村基础设施 | D51: 其他 | E51: 胭脂湖街道 | F51: 赤塘村 | G51: 渠道沟硬化 | H51: 新建 | I51: 赤塘村 | J51: 2022-07-01 | K51: 2022-09-01 | L51: 乡村振兴局 | M51: 渠道沟硬化1500米 | N51: =O51+P51+Q51+R51 -> 30 | O51: 30 | R51: 0 | S51: 1 | T51: 900 | U51: 2640 | V51: 0 | W51: 55 | X51: 138 | Y51: 项目（工程）验收合格率100% | Z51: ①提高群众生产生活水平 ②便利群众出行
A52: 13 | B52: 乡村建设行动 | C52: 农村基础设施 | D52: 其他 | E52: 胭脂湖街道 | F52: 赤塘村 | G52: 山塘改造 | H52: 改造 | I52: 赤塘村 | J52: 2022-01-01 | K52: 2022-04-01 | L52: 乡村振兴局 | M52: 山塘改造2口 | N52: =O52+P52+Q52+R52 -> 20 | O52: 20 | R52: 0 | S52: 1 | T52: 900 | U52: 2640 | V52: 0 | W52: 55 | X52: 138 | Y52: 项目（工程）验收合格率100% | Z52: ①提高群众生产生活水平 ②便利群众出行
A53: 14 | B53: 乡村建设行动 | C53: 农村基础设施 | D53: 农村道路建设 | E53: 胭脂湖街道 | F53: 永建村 | G53: 永建村 公路升级改造 | H53: 提质 | I53: 永建村 | J53: 2022-01-01 | K53: 2022-04-01 | L53: 乡村振兴局 | M53: 道路扩宽升级改造4公里 | N53: =O53+P53+Q53+R53 -> 160 | O53: 160 | R53: 0 | S53: 1 | T53: 500 | U53: 1500 | V53: 0 | W53: 45 | X53: 113 | Y53: 项目（工程）验收合格率100% | Z53: ①提高群众生产生活水平 ②便利群众出行 ③确保交通安全
A54: 15 | B54: 乡村建设行动 | C54: 农村基础设施 | D54: 其他 | E54: 胭脂湖街道 | F54: 永建村 | G54: 永建村 渠道衬渠 | H54: 新建 | I54: 永建村 | J54: 2022-01-01 | K54: 2022-04-01 | L54: 乡村振兴局 | M54: 沟渠新建5公里 | N54: =O54+P54+Q54+R54 -> 150 | O54: 150 | R54: 0 | S54: 1 | T54: 1000 | U54: 3800 | V54: 0 | W54: 45 | X54: 113 | Y54: 项目（工程）验收合格率100% | Z54: ①提高群众生产生活水平 ②提高群众生活满意度
A55: 16 | B55: 乡村建设行动 | C55: 农村基础设施 | D55: 农村道路建设 | E55: 胭脂湖街道 | F55: 胭脂湖村 | G55: 胭脂湖村公路拓宽 | H55: 扩建 | I55: 胭脂湖村 | J55: 2022-01-01 | K55: 2022-04-01 | L55: 乡村振兴局 | M55: 公路新建挡土墙、拓宽 1000米 | N55: =O55+P55+Q55+R55 -> 40 | O55: 40 | R55: 0 | S55: 1 | T55: 200 | U55: 460 | V55: 0 | W55: 49 | X55: 150 | Y55: 项目（工程）验收合格率100% | Z55: ①提高群众生产生活水平 ②便利群众出行
A56: 17 | B56: 乡村建设行动 | C56: 农村基础设施 | D56: 农村道路建设 | E56: 胭脂湖街道 | F56: 胭脂湖村 | G56: 胭脂村产业路建设 | H56: 新建 | I56: 胭脂湖村 | J56: 2022-05-01 | K56: 2022-08-01 | L56: 乡村振兴局 | M56: 机耕道 3000米 | N56: =O56+P56+Q56+R56 -> 90 | O56: 90 | R56: 0 | S56: 1 | T56: 500 | U56: 960 | V56: 0 | W56: 49 | X56: 150 | Y56: 项目（工程）验收合格率100% | Z56: ①提高群众生产生活水平 ②便利群众出行
A57: 18 | B57: 乡村建设行动 | C57: 农村基础设施 | D57: 农村道路建设 | E57: 胭脂湖街道 | F57: 先锋村 | G57: 先锋村道路硬化 | H57: 新建 | I57: 先锋村 | J57: 2022-01-01 | K57: 2022-04-01 | L57: 乡村振兴局 | M57: 道路石化1.5KM | N57: =O57+P57+Q57+R57 -> 75 | O57: 75 | R57: 0 | S57: 1 | T57: 15 | U57: 40 | V57: 0 | W57: 2 | X57: 5 | Y57: 项目（工程）验收合格率100% | Z57: ①提高群众生产生活水平 ②便利群众出行
A58: 19 | B58: 乡村建设行动 | C58: 农村基础设施 | D58: 农村道路建设 | E58: 胭脂湖街道 | F58: 先锋村 | G58: 先锋村道路硬化 | H58: 维修 | I58: 先锋村 | J58: 2022-01-01 | K58: 2022-04-01 | L58: 乡村振兴局 | M58: 道路维修1KM | N58: =O58+P58+Q58+R58 -> 65 | O58: 65 | R58: 0 | S58: 1 | T58: 10 | U58: 25 | V58: 0 | W58: 3 | X58: 8 | Y58: 项目（工程）验收合格率100% | Z58: ①提高群众生产生活水平 ②便利群众出行
A59: 20 | B59: 乡村建设行动 | C59: 农村基础设施 | D59: 其他 | E59: 胭脂湖街道 | F59: 先锋村 | G59: 先锋村修建围山渠道 | H59: 新建 | I59: 先锋村 | J59: 2022-01-01 | K59: 2022-04-01 | L59: 乡村振兴局 | M59: 修建围山渠道3KM | N59: =O59+P59+Q59+R59 -> 80 | O59: 80 | R59: 0 | S59: 1 | T59: 262 | U59: 640 | V59: 0 | W59: 17 | X59: 35 | Y59: 项目（工程）验收合格率100% | Z59: 完善水利设施，方便农户农田灌溉
A60: 21 | B60: 乡村建设行动 | C60: 农村基础设施 | D60: 农村道路建设 | E60: 胭脂湖街道 | F60: 十里坪村 | G60: 十里坪村公路硬化 | H60: 新建 | I60: 十里坪村 | J60: 2022-01-01 | K60: 2022-04-01 | L60: 乡村振兴局 | M60: 1公路路基建设，硬化 | N60: =O60+P60+Q60+R60 -> 40 | O60: 40 | R60: 0 | S60: 1 | T60: 72 | U60: 258 | V60: 0 | W60: 2 | X60: 5 | Y60: 项目（工程）验收合格率100% | Z60: ①提高群众生产生活水平 ②便利群众出行
A61: 22 | B61: 乡村建设行动 | C61: 农村基础设施 | D61: 其他 | E61: 胭脂湖街道 | F61: 十里坪村 | G61: 十里坪村渠道衬砌工程 | H61: 新建 | I61: 十里坪村 | J61: 2022-01-01 | K61: 2022-04-01 | L61: 乡村振兴局 | M61: 1000m（樟木村片400m,台公塘片600m） | N61: =O61+P61+Q61+R61 -> 20 | O61: 20 | R61: 0 | S61: 1 | T61: 94 | U61: 317 | V61: 0 | W61: 3 | X61: 8 | Y61: 项目（工程）验收合格率100% | Z61: ①提高群众生产生活水平
A62: 23 | B62: 乡村建设行动 | C62: 农村基础设施 | D62: 农村道路建设 | E62: 胭脂湖街道 | F62: 南竹山村 | G62: 道路硬化 | H62: 新建 | I62: 南竹山村 | J62: 2022-01-01 | K62: 2022-04-01 | L62: 乡村振兴局 | M62: 道路硬化2公里 | N62: =O62+P62+Q62+R62 -> 80 | O62: 80 | R62: 0 | S62: 1 | T62: 848 | U62: 3018 | V62: 0 | W62: 46 | X62: 141 | Y62: 项目（工程）验收合格率100% | Z62: 便利群众出行，提高群众生活水平
A63: 24 | B63: 乡村建设行动 | C63: 农村基础设施 | D63: 其他 | E63: 胭脂湖街道 | F63: 南竹山村 | G63: 渠道维修 | H63: 新建 | I63: 南竹山村 | J63: 2022-01-01 | K63: 2022-04-01 | L63: 乡村振兴局 | M63: 渠道维修1000米 | N63: =O63+P63+Q63+R63 -> 20 | O63: 20 | R63: 0 | S63: 1 | T63: 848 | U63: 3018 | V63: 0 | W63: 46 | X63: 141 | Y63: 项目（工程）验收合格率100% | Z63: 方便村民灌溉农田，增产增收
A64: 25 | B64: 乡村建设行动 | C64: 农村基础设施 | D64: 农村道路建设 | E64: 胭脂湖街道 | F64: 莲子塘村 | G64: 道路硬化 | H64: 新建 | I64: 莲子塘村 | J64: 2022-01-01 | K64: 2022-04-01 | L64: 乡村振兴局 | M64: 道路硬化2公里 | N64: =O64+P64+Q64+R64 -> 42 | O64: 42 | R64: 0 | S64: 1 | T64: 38 | U64: 120 | V64: 0 | W64: 6 | X64: 18 | Y64: 项目（工程）验收合格率100% | Z64: ①提高群众生产生活水平 ②便利群众出行
A65: 26 | B65: 乡村建设行动 | C65: 农村基础设施 | D65: 农村道路建设 | E65: 胭脂湖街道 | F65: 莲子塘村 | G65: 公路挡土墙 | H65: 改扩建 | I65: 莲子塘村 | J65: 2022-01-01 | K65: 2022-04-01 | L65: 乡村振兴局 | M65: 建设公路挡土墙1公里 | N65: =O65+P65+Q65+R65 -> 30 | O65: 30 | R65: 0 | S65: 1 | T65: 40 | U65: 160 | V65: 0 | W65: 4 | X65: 12 | Y65: 项目（工程）验收合格率100% | Z65: ①提高群众生产生活水平 ②便利群众出现
A66: 27 | B66: 乡村建设行动 | C66: 农村基础设施 | D66: 农村道路建设 | E66: 胭脂湖街道 | F66: 焦山咀村 | G66: 焦山咀村公路硬化 | H66: 新建 | I66: 焦山咀村 | J66: 2022-01-01 | K66: 2022-04-01 | L66: 乡村振兴局 | M66: 公路硬化 2400米 | N66: =O66+P66+Q66+R66 -> 81.6 | O66: 81.6 | R66: 0 | S66: 1 | T66: 400 | U66: 960 | V66: 0 | W66: 46 | X66: 89 | Y66: 项目（工程）验收合格率100% | Z66: ①提高群众生产生活水平 ②便利群众出行
A67: 28 | B67: 乡村建设行动 | C67: 农村基础设施 | D67: 农村道路建设 | E67: 胭脂湖街道 | F67: 焦山咀村 | G67: 焦山咀村公路维修加固 | H67: 维修 | I67: 焦山咀村 | J67: 2022-01-01 | K67: 2022-04-01 | L67: 乡村振兴局 | M67: 公路新建挡土墙 150米 | N67: =O67+P67+Q67+R67 -> 16 | O67: 16 | R67: 0 | S67: 1 | T67: 280 | U67: 510 | V67: 0 | W67: 30 | X67: 78 | Y67: 项目（工程）验收合格率100% | Z67: ①提高群众生产生活水平 ②便利群众出行
A68: 29 | B68: 乡村建设行动 | C68: 农村基础设施 | D68: 农村道路建设 | E68: 胭脂湖街道 | F68: 杨梅山村 | G68: 杨梅山村公路扩宽 | H68: 新建 | I68: 杨梅山村 | J68: 2022-01-01 | K68: 2022-04-01 | L68: 乡村振兴局 | M68: 公路拓宽 8000米 | N68: =O68+P68+Q68+R68 -> 336 | O68: 336 | R68: 0 | S68: 1 | T68: 2238 | U68: 6493 | V68: 1 | W68: 124 | X68: 364 | Y68: 项目（工程）验收合格率100% | Z68: ①提高群众生产生活水平 ②便利群众出行
A69: 30 | B69: 产业发展项目 | C69: 加工流通项目 | D69: 产地初加工和精深加工 | E69: 胭脂湖街道 | F69: 杨梅山村 | G69: 杨梅山村鸿杨农业综合开发有限公司（10万） | H69: 新建 | I69: 杨梅山村 | J69: 2022-03-01 | K69: 2022-04-01 | L69: 乡村振兴局 | M69: 烤房设备一套 | N69: =O69+P69+Q69+R69 -> 10 | O69: 10 | R69: 0 | S69: 1 | T69: 30 | U69: 78 | V69: 1 | W69: 8 | X69: 20 | Y69: 发展村集体经济，带动更多的农户增收增产，开拓市场，帮助20户脱贫户每人每年增加收入200-500元 | Z69: 1、带动地方产业发展 2、新增就业岗位 | AB69: 沅振发〔2022〕6号 | AC69: 10 | AD69: 沅财农指〔2022〕9号
A70: 31 | B70: 产业发展项目 | C70: 配套基础设施项目 | D70: 产业园配套设施建设 | E70: 胭脂湖街道 | F70: 先锋村 | G70: 先锋村产业发展配套基础设施建设 | H70: 新建 | I70: 先锋村 | J70: 2022-03-01 | K70: 2022-05-01 | L70: 乡村振兴局 | M70: 产业发展配套公路硬化1公里 | N70: =O70+P70+Q70+R70 -> 50 | O70: 50 | R70: 0 | S70: 1 | T70: 1092 | U70: 3520 | V70: 0 | W70: 20 | X70: 45 | Y70: 发展村集体经济，带动更多的农户增收增产，开拓市场 | Z70: ①提高群众生产生活水平，带动地方产业发展②便利群众出行 | AB70: 沅振发〔2022〕6号 | AC70: 50 | AD70: 沅财农指〔2022〕9号
A71: 32 | B71: 产业发展项目 | C71: 配套基础设施项目 | D71: 产业园配套设施建设 | E71: 胭脂湖街道 | F71: 南竹山村 | G71: 沅江市胭脂湖街道南竹山村经济合作社（10万） | H71: 新建 | I71: 南竹山村 | J71: 2022-04-01 | K71: 2021-06-01 | L71: 乡村振兴局 | M71: 产业园配套设施建设项目 | N71: =O71+P71+Q71+R71 -> 10 | O71: 10 | R71: 0 | S71: 1 | T71: 44 | U71: 136 | V71: 0 | W71: 12 | X71: 36 | Y71: 促进农业经济发展，带动农户增收增产，公司积极发展生产，开拓市场，指导农户参与分享收益，带动乡村振兴和周边农民脱贫致富增收 | Z71: 1、带动地方产业发展 2、新增就业岗位 | AB71: 沅振发〔2022〕6号 | AC71: 10 | AD71: 沅财农指〔2022〕9号
A72: 33 | B72: 乡村建设行动 | C72: 农村基础设施 | D72: 农村道路建设 | E72: 胭脂湖街道 | F72: 十里坪村 | G72: 十里坪村公路硬化 | H72: 新建 | I72: 十里坪村 | J72: 2022-03-01 | K72: 2022-06-01 | L72: 乡村振兴局 | M72: 公路硬化75米 | N72: =O72+P72+Q72+R72 -> 3 | O72: 3 | R72: 0 | S72: 1 | T72: 18 | U72: 53 | V72: 0 | W72: 7 | X72: 36 | Y72: 项目（工程）验收合格率100% | Z72: ①提高群众生产生活水平 ②便利群众出行 | AB72: 沅振发〔2022〕6号 | AC72: 3 | AD72: 沅财农指〔2022〕9号
A73: 34 | B73: 乡村建设行动 | C73: 农村基础设施 | D73: 农村道路建设 | E73: 胭脂湖街道 | F73: 三眼塘村 | G73: 胭脂湖街道三眼塘村沿湖大道南风坝段连接公路路基建设 | H73: 新建 | I73: 三眼塘村 | J73: 2022-04-01 | K73: 2022-06-01 | L73: 乡村振兴局 | M73: 南风坝段连接公路路基建设500米 | N73: =O73+P73+Q73+R73 -> 20 | O73: 20 | R73: 0 | S73: 1 | T73: 138 | U73: 276 | V73: 0 | W73: 18 | X73: 43 | Y73: 项目（工程）验收合格率100% | Z73: ①提高群众生产生活水平 ②便利群众出行 | AB73: 沅振发〔2022〕6号 | AC73: 20 | AD73: 沅财农指〔2022〕9号
A74: 35 | B74: 产业发展项目 | C74: 配套基础设施项目 | D74: 产业园配套设施建设 | E74: 胭脂湖街道 | F74: 莲子塘村 | G74: 莲子塘村产业发展配套基础设施建设 | H74: 新建 | I74: 莲子塘村 | J74: 2022-03-01 | K74: 2022-04-01 | L74: 乡村振兴局 | M74: 产业发展配套公路硬化100米 | N74: =O74+P74+Q74+R74 -> 5 | O74: 5 | R74: 0 | S74: 1 | T74: 18 | U74: 65 | V74: 0 | W74: 3 | X74: 7 | Y74: 促进农业经济发展，带动农户增收增产，公司积极发展生产，开拓市场，指导农户参与分享收益，带动乡村振兴和周边农民脱贫致富增收 | Z74: ①提高群众生产生活水平，带动地方产业发展 ②便利群众出行 | AB74: 沅振发〔2022〕6号 | AC74: 5 | AD74: 沅财农指〔2022〕9号
A75: 36 | B75: 产业发展项目 | C75: 配套基础设施项目 | D75: 产业园配套设施建设 | E75: 胭脂湖街道 | F75: 焦山咀村 | G75: 焦山咀村产业发展配套基础设施建设 | H75: 新建 | I75: 焦山咀村 | J75: 2022-03-01 | K75: 2022-05-01 | L75: 乡村振兴局 | M75: 产业发展配套公路修建公路硬化120米 | N75: =O75+P75+Q75+R75 -> 5 | O75: 5 | R75: 0 | S75: 1 | T75: 90 | U75: 480 | V75: 0 | W75: 19 | X75: 30 | Y75: 促进农业经济发展，带动农户增收增产，公司积极发展生产，开拓市场，指导农户参与分享收益，带动乡村振兴和周边农民脱贫致富增收 | Z75: ①提高群众生产生活水平，带动地方产业发展②便利群众出行 | AB75: 沅振发〔2022〕6号 | AC75: 5 | AD75: 沅财农指〔2022〕9号
A76: 37 | B76: 产业发展项目 | C76: 配套基础设施项目 | D76: 产业园配套设施建设 | E76: 胭脂湖街道 | F76: 永建村 | G76: 永建村产业发展配套基础设施建设 | H76: 新建 | I76: 永建村 | J76: 2022-03-01 | K76: 2022-04-01 | L76: 乡村振兴局 | M76: 产业发展配套公路修建公路硬化248米 | N76: =O76+P76+Q76+R76 -> 10 | O76: 10 | R76: 0 | S76: 1 | T76: 45 | U76: 113 | V76: 0 | W76: 10 | X76: 18 | Y76: 促进农业经济发展，带动农户增收增产，公司积极发展生产，开拓市场，指导农户参与分享收益，带动乡村振兴和周边农民脱贫致富增收 | Z76: ①提高群众生产生活水平，带动地方产业发展②便利群众出行 | AB76: 沅振发〔2022〕6号 | AC76: 10 | AD76: 沅财农指〔2022〕9号
A77: 38 | B77: 产业发展项目 | C77: 配套基础设施项目 | D77: 产业园配套设施建设 | E77: 胭脂湖街道 | F77: 荷花村 | G77: 荷花村产业发展配套基础设施建设 | H77: 新建 | I77: 荷花村 | J77: 2022-04-01 | K77: 2022-06-01 | L77: 乡村振兴局 | M77: 产业发展配套公路路基泥结石路及附属设施建设1500米 | N77: =O77+P77+Q77+R77 -> 20 | O77: 20 | R77: 0 | S77: 1 | T77: 120 | U77: 330 | V77: 1 | W77: 11 | X77: 35 | Y77: 促进农业经济发展，带动农户增收增产，公司积极发展生产，开拓市场，指导农户参与分享收益，带动乡村振兴和周边农民脱贫致富增收 | Z77: ①提高群众生产生活水平，带动地方产业发展②便利群众出行 | AB77: 沅振发〔2022〕1号 | AC77: 20 | AD77: 沅财农指〔2022〕2号
A78: 39 | B78: 乡村建设行动 | C78: 农村基础设施 | D78: 农村道路建设 | E78: 胭脂湖街道 | F78: 永建村 | G78: 永建村道路附属基础设施建设 | H78: 新建 | I78: 永建村 | J78: 2022-06-01 | K78: 2022-08-01 | L78: 乡村振兴局 | M78: 道路路基拓宽及挡土墙建设 | N78: =O78+P78+Q78+R78 -> 6 | O78: 6 | R78: 0 | S78: 1 | T78: 163 | U78: 783 | V78: 0 | W78: 45 | X78: 122 | Y78: 项目（工程）验收合格率100% | Z78: ①提高群众生产生活水平 ②便利群众出行 | AB78: 中央602 沅振发〔2022〕5号 | AC78: 6 | AD78: 沅财农指〔2022〕8号
A79: 40 | B79: 乡村建设行动 | C79: 农村基础设施 | D79: 农村道路建设 | E79: 胭脂湖街道 | F79: 胭脂湖村 | G79: 胭脂湖村道路拓宽及配套基础设计建设 | H79: 扩建 | I79: 胭脂湖村 | J79: 2022-06-01 | K79: 2022-08-01 | L79: 乡村振兴局 | M79: 道路拓宽2米共700米左右 | N79: =O79+P79+Q79+R79 -> 10 | O79: 10 | R79: 0 | S79: 1 | T79: 128 | U79: 650 | V79: 0 | W79: 60 | X79: 151 | Y79: 项目（工程）验收合格率100% | Z79: ①提高群众生产生活水平 ②便利群众出行 | AB79: 中央602 沅振发〔2022〕5号 | AC79: 10 | AD79: 沅财农指〔2022〕8号
A80: 41 | B80: 产业发展项目 | C80: 生产项目 | D80: 种植业基地 | E80: 胭脂湖街道 | F80: 杨梅山村 | G80: 杨梅姑娘果蔬合作社 | H80: 新建 | I80: 杨梅山村 | J80: 2022-06-01 | K80: 2022-08-01 | L80: 乡村振兴局 | M80: 休闲亭三座，果蔬长廊一座，体验式餐厅100平方米，亲子园200平方米 | N80: =O80+P80+Q80+R80 -> 20 | O80: 20 | R80: 0 | S80: 1 | T80: 2204 | U80: 6589 | V80: 1 | W80: 4 | X80: 12 | Y80: 促进农业经济发展，带动农户增收增产，公司积极发展生产，开拓市场，指导农户参与分享收益，带动乡村振兴和周边农民脱贫致富增收 | Z80: 1、带动地方产业发展 2、新增就业岗位 | AB80: 中央602 沅振发〔2022〕5号 | AC80: 20 | AD80: 沅财农指〔2022〕8号
A81: 42 | B81: 产业发展项目 | C81: 生产项目 | D81: 养殖业基地 | E81: 胭脂湖街道 | F81: 南竹山村 | G81: 初聚种养合作社 | H81: 新建 | I81: 南竹山村 | J81: 2022-06-01 | K81: 2022-08-01 | L81: 乡村振兴局 | M81: 莲藕大头鱼产业项目 | N81: =O81+P81+Q81+R81 -> 20 | O81: 20 | R81: 0 | S81: 1 | T81: 163 | U81: 452 | V81: 0 | W81: 15 | X81: 32 | Y81: 促进农业经济发展，带动农户增收增产，公司积极发展生产，开拓市场，指导农户参与分享收益，带动乡村振兴和周边农民脱贫致富增收 | Z81: 1、带动地方产业发展 2、新增就业岗位 | AB81: 中央602 沅振发〔2022〕5号 | AC81: 20 | AD81: 沅财农指〔2022〕8号
A82: 43 | B82: 产业发展项目 | C82: 配套基础设施项目 | D82: 小型农田水利设施建设 | E82: 胭脂湖街道 | F82: 南竹山村 | G82: 渠道新建硬化 | H82: 新建 | I82: 南竹山村 | J82: 2022-08-01 | K82: 2022-09-01 | L82: 乡村振兴局 | M82: 900米 | N82: =O82+P82+Q82+R82 -> 30 | O82: 30 | R82: 0 | S82: 1 | T82: 160 | U82: 400 | V82: 0 | W82: 10 | X82: 15 | Y82: 促进农业经济发展，带动农户增收增产，公司积极发展生产，开拓市场，指导农户参与分享收益，带动乡村振兴和周边农民脱贫致富增收 | Z82: 1、解决积水，使农田增产增收 2、带动务工就业 | AB82: 省第二批沅振发〔2022〕9号 | AC82: 30 | AD82: 沅财农指〔2022〕13号
A83: 44 | B83: 产业发展项目 | C83: 配套基础设施项目 | D83: 小型农田水利设施建设 | E83: 胭脂湖街道 | F83: 三眼塘村 | G83: 三眼塘村后里冲塘 山塘清淤 | H83: 维修 | I83: 三眼塘村1组 | J83: 2022-09-01 | K83: 2022年10月 | L83: 乡村振兴局 | M83: 后里冲塘清淤清运土方 3300方 | N83: =O83+P83+Q83+R83 -> 5 | O83: 5 | P83: 0 | Q83: 0 | R83: 0 | S83: 1 | T83: 74 | U83: 206 | V83: 0 | W83: 18 | X83: 45 | Y83: 项目（工程）验收合格率100% | Z83: 提高群众生产生活水平，便利农业用水灌溉，提高群众满意度 | AB83: 沅振发〔2022〕11号 | AC83: 5 | AD83: 沅财农指〔2022〕21号
A84: 45 | B84: 乡村建设行动 | C84: 农村基础设施 | D84: 农村道路建设 | E84: 胭脂湖街道 | F84: 赤塘村 | G84: 11组挡土墙 | H84: 新建 | I84: 赤塘村12组 | J84: 2022-06-01 | K84: 2022-08-01 | L84: 赤塘村 | M84: 挡土墙新建156.24m³ | N84: =O84+P84+Q84+R84 -> 10 | O84: 10 | P84: 0 | Q84: 0 | R84: 0 | S84: 1 | T84: 56 | U84: 143 | V84: 0 | W84: 56 | X84: 113 | Y84: 项目（工程）验收合格率100% | Z84: 方便群众出行，便于农业生产，为群众增收 | AB84: 沅振发〔2022〕11号 | AC84: 10 | AD84: 沅财农指〔2022〕21号
A85: 46 | B85: 产业发展项目 | C85: 生产项目 | D85: 种植业基地 | E85: 胭脂湖街道 | F85: 南竹山村 | G85: 大山岭产业园产业发展 | H85: 新建 | I85: 南竹山村 | J85: 2022-01-01 | K85: 2022-11-01 | L85: 南竹山村 | M85: 48亩 | N85: =O85+P85+Q85+R85 -> 30 | O85: 30 | P85: 0 | Q85: 0 | R85: 0 | S85: 1 | T85: 163 | U85: 452 | V85: 0 | W85: 18 | X85: 37 | Y85: 促进农业经济发展，带动农户增收增产，公司积极发展生产，开拓市场，指导农户参与分享收益，带动乡村振兴和周边农民脱贫致富增收 | Z85: 1、带动地方产业发展 2、新增就业岗位3、打造红色观光产业园 | AB85: 沅振发〔2022〕11号 | AC85: 30 | AD85: 沅财农指〔2022〕21号
A86: 1 | B86: 乡村建设行动 | C86: 农村基础设施 | D86: 其他 | E86: 新湾镇 | F86: 龙虎山村 | G86: 新湾镇龙虎山村-基础设施-一组渠道沟衬砌项目 | H86: 新建 | I86: 龙虎山村一组 | J86: 2022-02-01 | K86: 2022-02-01 | L86: 乡村振兴局 | M86: 渠道沟清淤衬砌1000米 | N86: =O86+P86+Q86+R86 -> 30 | O86: 30 | R86: 0 | S86: 1 | T86: 55 | U86: 154 | V86: 0 | W86: 6 | X86: 15 | Y86: 项目带动脱贫人口直接受益15人 | Z86: ①提高群众生产生活水平②解决脱贫户6户15人的水利灌溉问题
A87: 2 | B87: 乡村建设行动 | C87: 农村基础设施 | D87: 其他 | E87: 新湾镇 | F87: 龙虎山村 | G87: 新湾镇龙虎山村-基础设施-五组渠道沟衬砌项目 | H87: 新建 | I87: 龙虎山村五组 | J87: 2022-02-01 | K87: 2022-02-01 | L87: 乡村振兴局 | M87: 渠道沟清淤衬砌600米 | N87: =O87+P87+Q87+R87 -> 16 | O87: 16 | R87: 0 | S87: 1 | T87: 50 | U87: 120 | V87: 0 | W87: 5 | X87: 12 | Y87: 项目带动脱贫人口直接受益12人 | Z87: ①提高群众生产生活水平②解决脱贫户5户12人的水利灌溉问题
A88: 3 | B88: 乡村建设行动 | C88: 农村基础设施 | D88: 其他 | E88: 新湾镇 | F88: 龙虎山村 | G88: 新湾镇龙虎山村-基础设施-五组山塘维修项目 | H88: 新建 | I88: 龙虎山村五组 | J88: 2022-03-01 | K88: 2022-03-01 | L88: 乡村振兴局 | M88: 山塘维修3亩 | N88: =O88+P88+Q88+R88 -> 15 | O88: 15 | R88: 0 | S88: 1 | T88: 50 | U88: 120 | V88: 0 | W88: 5 | X88: 12 | Y88: 项目带动脱贫人口直接受益12人 | Z88: ①提高群众生产生活水平②解决脱贫户5户12人的水利灌溉问题
A89: 4 | B89: 乡村建设行动 | C89: 农村基础设施 | D89: 其他 | E89: 新湾镇 | F89: 龙虎山村 | G89: 新湾镇龙虎山村-基础设施-二组山塘维修项目 | H89: 新建 | I89: 龙虎山村二组 | J89: 2022-03-01 | K89: 2022-03-01 | L89: 乡村振兴局 | M89: 山塘维修2亩 | N89: =O89+P89+Q89+R89 -> 10 | O89: 10 | R89: 0 | S89: 1 | T89: 12 | U89: 38 | V89: 0 | W89: 3 | X89: 11 | Y89: 项目带动脱贫人口直接受益11人 | Z89: ①提高群众生产生活水平②解决脱贫户3户11人的水利灌溉问题
A90: 5 | B90: 乡村建设行动 | C90: 农村基础设施 | D90: 农村道路建设 | E90: 新湾镇 | F90: 新湾村 | G90: 新湾镇新湾村-基础设施6公里公路拓宽硬化项目 | H90: 改扩建 | I90: 新湾村 | J90: 2022-05-01 | K90: 2022-12-01 | L90: 乡村振兴局 | M90: 村级主干道约6公里，拓宽2.5米 | N90: =O90+P90+Q90+R90 -> 300 | O90: 260 | R90: 40 | S90: 1 | T90: 1050 | U90: 2860 | V90: 1 | W90: 24 | X90: 52 | Y90: 项目带动脱贫人口直接受益52人 | Z90: ①提高群众生产生活水平②解决脱贫户24户52人的出行和农副产品运输
A91: 6 | B91: 乡村建设行动 | C91: 农村基础设施 | D91: 其他 | E91: 新湾镇 | F91: 新湾村 | G91: 新湾镇新湾村-基础设施-五口山塘维修 | H91: 维修 | I91: 新湾村 | J91: 2022-08-01 | K91: 2022-12-01 | L91: 乡村振兴局 | M91: 五口山塘维修 | N91: =O91+P91+Q91+R91 -> 50 | O91: 40 | R91: 10 | S91: 1 | T91: 120 | U91: 260 | V91: 1 | W91: 15 | X91: 36 | Y91: 项目带动脱贫人口直接受益36人 | Z91: ①提高山塘的蓄水能力②确保群众的增产增收
A92: 7 | B92: 乡村建设行动 | C92: 农村基础设施 | D92: 其他 | E92: 新湾镇 | F92: 新湾村 | G92: 新湾镇新湾村-基础设施-1000米渠道沟衬砌项目 | H92: 新建 | I92: 新湾村 | J92: 2022-09-01 | K92: 2022-12-01 | L92: 乡村振兴局 | M92: 渠道沟清淤衬砌1000米 | N92: =O92+P92+Q92+R92 -> 60 | O92: 50 | R92: 10 | S92: 1 | T92: 80 | U92: 180 | V92: 1 | W92: 8 | X92: 13 | Y92: 项目带动脱贫人口直接受益13人 | Z92: ①提高群众生产生活水平②解决脱贫户6户13人的水利灌溉问题
A93: 8 | B93: 产业发展项目 | C93: 生产项目 | D93: 种植业基地 | E93: 新湾镇 | F93: 新湾村 | G93: 新湾镇新湾村-产业发展-柑橘品种改良项目（喷滴灌设施） | H93: 新建 | I93: 新湾村 | J93: 2022-04-01 | K93: 2022-12-01 | L93: 农业农村局 | M93: 500亩的柑橘品种改良 | N93: =O93+P93+Q93+R93 -> 200 | O93: 170 | R93: 30 | S93: 1 | T93: 128 | U93: 380 | V93: 1 | W93: 16 | X93: 35 | Y93: 项目带动脱贫人口直接受益35人 | Z93: ①提高群众生产生活水平和收入
A94: 9 | B94: 乡村建设行动 | C94: 农村基础设施 | D94: 其他 | E94: 新湾镇 | F94: 莲花村 | G94: 新湾镇莲花村-基础建设-800米渠道沟衬砌项目 | H94: 新建 | I94: 莲花村横冲组 | J94: 2022-10-01 | K94: 2022-12-01 | L94: 乡村振兴局 | M94: 渠道沟清淤衬砌800米 | N94: =O94+P94+Q94+R94 -> 22 | O94: 22 | R94: 0 | S94: 1 | T94: 50 | U94: 200 | V94: 0 | W94: 5 | X94: 18 | Y94: 项目带动脱贫人口直接受益18人 | Z94: 提高群众生产生活水平，解决脱贫户5户18人的水利灌溉问题
A95: 10 | B95: 乡村建设行动 | C95: 农村基础设施 | D95: 农村道路建设 | E95: 新湾镇 | F95: 莲花村 | G95: 新湾镇莲花村-基础建设-罗家组组级公路硬化项目 | H95: 新建 | I95: 莲花村罗家组 | J95: 2022-05-01 | K95: 2022-07-01 | L95: 乡村振兴局 | M95: 公路硬化600米 | N95: =O95+P95+Q95+R95 -> 12.5 | O95: 12.5 | R95: 0 | S95: 1 | T95: 52 | U95: 210 | V95: 0 | W95: 3 | X95: 16 | Y95: 项目带动脱贫人口直接受益16人 | Z95: 提高群众生产生活水平，解决脱贫户3户16人道路出行问题
A96: 11 | B96: 乡村建设行动 | C96: 农村基础设施 | D96: 其他 | E96: 新湾镇 | F96: 莲花村 | G96: 新湾镇莲花村-基础设施-伍家、群利、龙板组渠道沟衬砌项目 | H96: 新建 | I96: 莲花村伍家、群利、龙板组 | J96: 2022-10-01 | K96: 2022-12-01 | L96: 乡村振兴局 | M96: 渠道沟清淤衬砌3000米 | N96: =O96+P96+Q96+R96 -> 60 | O96: 60 | R96: 0 | S96: 1 | T96: 120 | U96: 420 | V96: 0 | W96: 8 | X96: 27 | Y96: 项目带动脱贫人口直接受益27人 | Z96: 提高群众生产生活水平，解决脱贫户8户27人的水利灌溉问题
A97: 12 | B97: 乡村建设行动 | C97: 农村基础设施 | D97: 农村道路建设 | E97: 新湾镇 | F97: 莲花村 | G97: 新湾镇莲花村-基础建设-鲁家组组级公路硬化项目 | H97: 新建 | I97: 莲花村鲁家组 | J97: 2022-09-01 | K97: 2022-10-01 | L97: 乡村振兴局 | M97: 公路硬化250米 | N97: =O97+P97+Q97+R97 -> 10 | O97: 10 | R97: 0 | S97: 1 | T97: 28 | U97: 90 | V97: 0 | W97: 2 | X97: 7 | Y97: 项目带动脱贫人口直接受益7人 | Z97: 提高群众生产生活水平，解决脱贫户2户7人道路出行问题 | AB97: 沅振发〔2022〕1号 | AC97: 10 | AD97: 沅财农指〔2022〕2号
A98: 13 | B98: 乡村建设行动 | C98: 农村基础设施 | D98: 其他 | E98: 新湾镇 | F98: 莲花村 | G98: 新湾镇莲花村-基础设施-民乐、平安、沙水组渠道沟衬砌项目 | H98: 新建 | I98: 莲花村民乐、平安、沙水组 | J98: 2022-10-01 | K98: 2022-12-01 | L98: 乡村振兴局 | M98: 渠道沟清淤衬砌2800米 | N98: =O98+P98+Q98+R98 -> 56 | O98: 56 | R98: 0 | S98: 1 | T98: 115 | U98: 400 | V98: 0 | W98: 7 | X98: 24 | Y98: 项目带动脱贫人口直接受益24人 | Z98: 提高群众生产生活水平，解决脱贫户7户24人的水利灌溉问题
A99: 14 | B99: 乡村建设行动 | C99: 农村基础设施 | D99: 农村道路建设 | E99: 新湾镇 | F99: 杨阁老村 | G99: 新湾镇杨阁老村-基础设施-阁老公路拓宽硬化项目 | H99: 改扩建 | I99: 杨阁老村 | J99: 2022-02-01 | K99: 2022-12-01 | L99: 乡村振兴局 | M99: 村级主干道约3公里，拓宽2.5米 | N99: =O99+P99+Q99+R99 -> 150 | O99: 30 | R99: 120 | S99: 1 | T99: 410 | U99: 1390 | V99: 0 | W99: 22 | X99: 49 | Y99: 项目带动脱贫人口直接受益49人 | Z99: ①提高群众生产生活水平②解决脱贫户22户49人的出行和农副产品运输
A100: 15 | B100: 乡村建设行动 | C100: 农村基础设施 | D100: 农村道路建设 | E100: 新湾镇 | F100: 杨阁老村 | G100: 新湾镇杨阁老村-基础设施-4公里村级主干道道路护栏项目 | H100: 新建 | I100: 杨阁老村 | J100: 2022-01-01 | K100: 2022-12-01 | L100: 乡村振兴局 | M100: 4公里村级道路需要安装护栏 | N100: =O100+P100+Q100+R100 -> 10 | O100: 10 | R100: 0 | S100: 1 | T100: 600 | U100: 2000 | V100: 0 | W100: 35 | X100: 75 | Y100: 项目带动脱贫人口直接受益75人 | Z100: ①提高群众生产生活水平②解决脱贫户35户75人的安全出行
A101: 16 | B101: 乡村建设行动 | C101: 农村基础设施 | D101: 其他 | E101: 新湾镇 | F101: 杨阁老村 | G101: 新湾镇杨阁老村村-基础设施-大村组渠道沟衬砌项目 | H101: 新建 | I101: 杨阁老村大村组 | J101: 2022-02-01 | K101: 2022-12-01 | L101: 乡村振兴局 | M101: 渠道沟清淤衬砌1800米 | N101: =O101+P101+Q101+R101 -> 40 | O101: 40 | R101: 0 | S101: 1 | T101: 110 | U101: 400 | V101: 0 | W101: 6 | X101: 11 | Y101: 项目带动脱贫人口直接受益11人 | Z101: ①提高群众生产生活水平②解决脱贫户6户11人的水利灌溉问题
A102: 17 | B102: 产业发展项目 | C102: 生产项目 | D102: 种植业基地 | E102: 新湾镇 | F102: 杨阁老村 | G102: 新湾镇杨阁老村-产业发展-柑橘品种改良项目 | H102: 新建 | I102: 杨阁老村 | J102: 2022-02-01 | K102: 2022-12-01 | L102: 农业农村局 | M102: 200亩的柑橘品种改良 | N102: =O102+P102+Q102+R102 -> 80 | O102: 20 | R102: 60 | S102: 1 | T102: 654 | U102: 2208 | V102: 0 | W102: 40 | X102: 85 | Y102: 项目带动脱贫人口直接受益85人 | Z102: ①提高群众生产生活水平和收入
A103: 18 | B103: 乡村建设行动 | C103: 农村基础设施 | D103: 农村道路建设 | E103: 新湾镇 | F103: 老屋冲村 | G103: 新湾镇老屋冲村-基础设施-八组公路硬化项目 | H103: 改扩建 | I103: 老屋冲村八组 | J103: 2022-03-01 | K103: 2022-04-30 | L103: 乡村振兴局 | M103: 公路硬化1000米 | N103: =O103+P103+Q103+R103 -> 30 | O103: 30 | R103: 0 | S103: 1 | T103: 42 | U103: 138 | V103: 0 | W103: 15 | X103: 36 | Y103: 项目带动脱贫人口直接受益36人 | Z103: ①提高群众生产生活水平②解决脱贫户15户36人的出行便利问题
A104: 19 | B104: 乡村建设行动 | C104: 农村基础设施 | D104: 农村道路建设 | E104: 新湾镇 | F104: 老屋冲村 | G104: 新湾镇老屋冲村-基础设施-四组公路硬化项目 | H104: 改扩建 | I104: 老屋冲村四组 | J104: 2022-06-01 | K104: 2022-07-01 | L104: 乡村振兴局 | M104: 公路硬化1000米 | N104: =O104+P104+Q104+R104 -> 30 | O104: 30 | R104: 0 | S104: 1 | T104: 58 | U104: 212 | V104: 0 | W104: 21 | X104: 60 | Y104: 项目带动脱贫人口直接受益60人 | Z104: ①提高群众生产生活水平②解决脱贫户21户60人的出行便利问题
A105: 20 | B105: 乡村建设行动 | C105: 农村基础设施 | D105: 农村道路建设 | E105: 新湾镇 | F105: 老屋冲村 | G105: 新湾镇老屋冲村-基础设施-五组公路硬化项目 | H105: 改扩建 | I105: 老屋冲村五组 | J105: 2022-09-01 | K105: 2022-10-01 | L105: 乡村振兴局 | M105: 公路硬化800米 | N105: =O105+P105+Q105+R105 -> 25 | O105: 25 | R105: 0 | S105: 1 | T105: 50 | U105: 157 | V105: 0 | W105: 20 | X105: 42 | Y105: 项目带动脱贫人口直接受益42人 | Z105: ①提高群众生产生活水平②解决脱贫户20户42人的出行便利问题
A106: 21 | B106: 乡村建设行动 | C106: 农村基础设施 | D106: 农村道路建设 | E106: 新湾镇 | F106: 周公湖村 | G106: 新湾镇周公湖村农村-基础设施-新村至罗家河公路建设项目 | H106: 新建 | I106: 周公湖村新村至罗家河 | J106: 2022-03-01 | K106: 2022-06-01 | L106: 乡村振兴局 | M106: 公路硬化2公里 | N106: =O106+P106+Q106+R106 -> 100 | O106: 80 | R106: 20 | S106: 1 | T106: 205 | U106: 620 | V106: 0 | W106: 20 | X106: 63 | Y106: 项目带动脱贫人口直接受益63人 | Z106: ①提高群众生产生活水平②解决脱贫户20户63人的出行安全及发展经济问题
A107: 22 | B107: 乡村建设行动 | C107: 农村基础设施 | D107: 农村道路建设 | E107: 新湾镇 | F107: 周公湖村 | G107: 新湾镇周公湖村-农村基础设施-新村至烂泥组公路建设项目 | H107: 新建 | I107: 周公湖村新村至烂泥组 | J107: 2022-07-01 | K107: 2022-09-01 | L107: 乡村振兴局 | M107: 公路硬化1公里 | N107: =O107+P107+Q107+R107 -> 50 | O107: 40 | R107: 10 | S107: 1 | T107: 43 | U107: 125 | V107: 0 | W107: 8 | X107: 25 | Y107: 项目带动脱贫人口直接受益25人 | Z107: ①提高群众生产生活水平②解决脱贫户8户25人的出行安全及发展经济问题
A108: 23 | B108: 产业发展项目 | C108: 生产项目 | D108: 种植业基地 | E108: 新湾镇 | F108: 桥北村 | G108: 新湾镇桥北村-农业生产-柑橘品改基地 | H108: 改造 | I108: 桥北村 | J108: 2022-01-01 | K108: 2023-12-01 | L108: 农业农村局 | M108: 300亩特色水果、油良品改 | N108: =O108+P108+Q108+R108 -> 300 | O108: 300 | R108: 0 | S108: 1 | T108: 358 | U108: 1195 | V108: 0 | W108: 23 | X108: 65 | Y108: 项目带动脱贫人口直接受益65人 | Z108: ①提高群众生产生活水平②确保群众的增产增收
A109: 24 | B109: 产业发展项目 | C109: 生产项目 | D109: 水产养殖业发展 | E109: 新湾镇 | F109: 桥北村 | G109: 新湾镇桥北村-农业生产-水产养殖合作社 | H109: 新建 | I109: 桥北村 | J109: 2022-01-01 | K109: 2022-12-01 | L109: 农业农村局 | M109: 生态养殖垂钓场200亩 | N109: =O109+P109+Q109+R109 -> 200 | O109: 200 | R109: 0 | S109: 1 | T109: 218 | U109: 860 | V109: 0 | W109: 15 | X109: 36 | Y109: 项目带动脱贫人口直接受益36人 | Z109: ①提高群众生产生活水平②确保群众的增产增收
A110: 25 | B110: 乡村建设行动 | C110: 农村基础设施 | D110: 农村道路建设 | E110: 新湾镇 | F110: 桥北村 | G110: 新湾镇桥北村-基础设施-广花组公路拓宽 | H110: 扩建 | I110: 桥北村广花组 | J110: 2022-01-01 | K110: 2022-12-01 | L110: 乡村振兴局 | M110: 桥北村广花组公路拓宽150米 | N110: =O110+P110+Q110+R110 -> 5 | O110: 5 | R110: 0 | S110: 1 | T110: 92 | U110: 244 | V110: 0 | W110: 3 | X110: 9 | Y110: 项目带动脱贫人口直接受益9人 | Z110: ①方便群众出行②提高群众生产生活水平和收入 | AB110: 沅振发〔2022〕1号 | AC110: 5 | AD110: 沅财农指〔2022〕2号
A111: 26 | B111: 乡村建设行动 | C111: 农村基础设施 | D111: 农村道路建设 | E111: 新湾镇 | F111: 桥北村 | G111: 新湾镇桥北村-基础设施-公路拓宽 | H111: 扩建 | I111: 广花、枫树、红旗、新屋 | J111: 2022-01-01 | K111: 2022-12-01 | L111: 乡村振兴局 | M111: 5.5公里公路拓宽2.5米 | N111: =O111+P111+Q111+R111 -> 250 | O111: 250 | R111: 0 | S111: 1 | T111: 109 | U111: 786 | V111: 0 | W111: 19 | X111: 48 | Y111: 项目带动脱贫人口直接受益48人 | Z111: ①方便群众出行②提高群众生产生活水平和收入
A112: 27 | B112: 产业发展项目 | C112: 生产项目 | D112: 种植业基地 | E112: 新湾镇 | F112: 新湾村 | G112: 新湾镇-产业发展-盛旺蠡山柑橘品改项目 | H112: 改扩建 | I112: 新湾村 | J112: 2022-03-01 | K112: 2022-06-01 | L112: 乡村振兴局 | M112: 100亩的柑橘品种改良 | N112: =O112+P112+Q112+R112 -> 10 | O112: 10 | R112: 0 | S112: 1 | T112: 35 | U112: 120 | V112: 1 | W112: 3 | X112: 7 | Y112: 项目带动脱贫人口直接受益7人 | Z112: ①提高群众生产生活水平和收入 | AB112: 沅振发〔2022〕1号 | AC112: 10 | AD112: 沅财农指〔2022〕2号
A113: 28 | B113: 乡村建设行动 | C113: 农村基础设施 | D113: 农村道路建设 | E113: 新湾镇 | F113: 龙虎山村 | G113: 新湾镇龙虎山村-基础设施-一组公路拓宽项目 | H113: 新建 | I113: 龙虎山村一组 | J113: 2022-01-01 | K113: 2022-01-30 | L113: 乡村振兴局 | M113: 长1500米宽3米公路路基拓宽 | N113: =O113+P113+Q113+R113 -> 3 | O113: 3 | R113: 0 | S113: 1 | T113: 12 | U113: 38 | V113: 0 | W113: 3 | X113: 11 | Y113: 项目带动脱贫人口直接受益11人 | Z113: ①提高群众生产生活水平②解决脱贫户3户11人的水利灌溉问题 | AB113: 沅振发〔2022〕6号 | AC113: 3 | AD113: 沅财农指〔2022〕9号
A114: 29 | B114: 产业发展项目 | C114: 配套基础 | D114: 产业园 | E114: 新湾镇 | F114: 桥北村 | G114: 桥北村经济合作社-橘柚示范园 | H114: 产业发展 | I114: 桥北村东风组 | J114: 2022-06-01 | K114: 2022-10-01 | L114: 乡村振兴局 | M114: 桥北村橘柚示范园蓄水池建设及土地平整 | N114: =O114+P114+Q114+R114 -> 20 | O114: 20 | R114: 0 | S114: 1 | T114: 1220 | U114: 2978 | V114: 0 | W114: 41 | X114: 101 | Y114: 项目带动脱贫人口直接受益102人 | Z114: ①提高群众生产生活水平 ②增加集体经济收入③带动脱贫户41户102人发展后续帮扶产业 | AB114: 中央602 沅振发〔2022〕5号 | AC114: 20 | AD114: 沅财农指〔2022〕8号
A115: 30 | B115: 乡村建设行动 | C115: 农村基础设施 | D115: 农村道路建设 | E115: 新湾镇 | F115: 桥北村 | G115: 桥北村广花组、郭家组拓宽公路硬化 | H115: 基础设施 | I115: 桥北村广花组、郭家组 | J115: 2022-08-01 | K115: 2022-10-01 | L115: 乡村振兴局 | M115: 桥北村广花组、郭家组拓宽了2.5米路基的800米长路段进行硬化 | N115: =O115+P115+Q115+R115 -> 30 | O115: 30 | R115: 0 | S115: 1 | T115: 143 | U115: 353 | V115: 0 | W115: 5 | X115: 13 | Y115: 项目带动脱贫人口直接受益13人 | Z115: ①提高群众生产生活水平②解决脱贫户5户13人的出行安全及发展经济问题 | AB115: 省第二批沅振发〔2022〕9号 | AC115: 30 | AD115: 沅财农指〔2022〕13号
A116: 31 | B116: 乡村建设行动 | C116: 农村基础设施 | D116: 农村道路建设 | E116: 新湾镇 | F116: 桥北村 | G116: 桥北村广花组、枫树组道路拓宽路基建设 | H116: 基础设施 | I116: 桥北村广花组、枫树组 | J116: 2022-08-01 | K116: 2022-10-01 | L116: 乡村振兴局 | M116: 桥北村广花组、枫树组800米路段道路拓宽2.5米（含两边各0.5米绿化带）路基建设 | N116: =O116+P116+Q116+R116 -> 10 | O116: 10 | R116: 0 | S116: 1 | T116: 146 | U116: 365 | V116: 0 | W116: 2 | X116: 7 | Y116: 项目带动脱贫人口直接受益7人 | Z116: ①提高群众生产生活水平②解决脱贫户2户7人的出行安全及发展经济问题 | AB116: 省第二批沅振发〔2022〕9号 | AC116: 10 | AD116: 沅财农指〔2022〕14号
A117: 32 | B117: 乡村建设行动 | C117: 农村基础设施 | D117: 农村道路建设 | E117: 新湾镇 | F117: 杨阁老村 | G117: 杨阁老村何家组道路200米拓宽 | H117: 基础设施建设 | I117: 杨阁老村何家组 | J117: 2022-08-20 | K117: 2022-10-01 | L117: 乡村振兴局 | M117: 何家组道路约拓宽200米 | N117: =O117+P117+Q117+R117 -> 10 | O117: 10 | R117: 0 | S117: 1 | T117: 110 | U117: 320 | V117: 0 | W117: 4 | X117: 11 | Y117: 项目带动脱贫人口直接受益13人 | Z117: ①提高群众生产生活水平②解决脱贫户4户11人的出行安全及发展经济问题 | AB117: 省第二批沅振发〔2022〕9号 | AC117: 10 | AD117: 沅财农指〔2022〕13号
A118: 33 | B118: 乡村建设行动 | C118: 农村基础设施 | D118: 农村道路建设 | E118: 新湾镇 | F118: 莲花村 | G118: 新湾镇莲花村罗家组公路硬化项目 | H118: 基础设施建设 | I118: 莲花村罗家组 | J118: 2022-10-01 | K118: 2022-12-01 | L118: 乡村振兴局 | M118: 罗家组道路硬化250米 | N118: =O118+P118+Q118+R118 -> 10 | O118: 10 | R118: 0 | S118: 1 | T118: 52 | U118: 210 | V118: 0 | W118: 4 | X118: 12 | Y118: 项目带动脱贫人口直接受益12人 | Z118: 提高群众生产生活水平，解决脱贫户4户12人道路出行问题 | AB118: 省第二批沅振发〔2022〕9号 | AC118: 10 | AD118: 沅财农指〔2022〕13号
A119: 34 | B119: 乡村建设行动 | C119: 农村基础设施 | D119: 农村道路建设（通村、通户路） | E119: 新湾镇 | F119: 老屋冲村 | G119: 新湾镇老屋冲村大冲片区公路硬化项目 | H119: 新建 | I119: 老屋冲村大冲村 | J119: 2022-09-01 | K119: 2022-10-01 | L119: 老屋冲村 | M119: 公路硬化850米 | N119: =O119+P119+Q119+R119 -> 38 | O119: 38 | R119: 0 | S119: 1 | T119: 182 | U119: 402 | V119: 0 | W119: 10 | X119: 24 | Y119: 项目带动脱贫人口直接受益24人 | Z119: 1、提高群众生产生活水平。2.解决脱贫户16户40人的出行安全及发展经济问题 | AB119: 县级 | AC119: 38 | AD119: 沅财农指〔2022〕23号
A120: 35 | B120: 乡村建设行动 | C120: 农村基础设施 | D120: 农村道路建设（通村、通户路） | E120: 新湾镇 | F120: 老屋冲村 | G120: 新湾镇老屋冲村兰花片区公路硬化项目 | H120: 新建 | I120: 老屋冲村兰花村 | J120: 2022-09-01 | K120: 2022-10-01 | L120: 老屋冲村 | M120: 公路硬化750米 | N120: =O120+P120+Q120+R120 -> 32 | O120: 32 | R120: 0 | S120: 1 | T120: 126 | U120: 296 | V120: 0 | W120: 8 | X120: 20 | Y120: 项目带动脱贫人口直接受益20人 | Z120: 1、提高群众生产生活水平。2.解决脱贫户16户40人的出行安全及发展经济问题 | AB120: 县级 | AC120: 32 | AD120: 沅财农指〔2022〕23号
A121: 36 | B121: 乡村建设行动 | C121: 农村基础设施 | D121: 农村道路建设（通村、通户路） | E121: 新湾镇 | F121: 老屋冲村 | G121: 新湾镇老屋冲村-基础设施-关王组到桂枝园组公路硬化项目 | H121: 新建 | I121: 老屋冲村 | J121: 2022-10-01 | K121: 2022-11-01 | L121: 老屋冲村 | M121: 公路硬化150米 | N121: =O121+P121+Q121+R121 -> 7 | O121: 7 | R121: 0 | S121: 1 | T121: 104 | U121: 270 | V121: 0 | W121: 3 | X121: 6 | Y121: 项目带动脱贫人口直接受益6人 | Z121: 1、提高群众生产生活水平。2.解决脱贫户3户6人的出行安全及发展经济问题 | AB121: 沅振发〔2022〕11号 | AC121: 7 | AD121: 沅财农指〔2022〕21号
A122: 37 | B122: 乡村建设行动 | C122: 农村基础设施 | D122: 农村道路建设 | E122: 新湾镇 | F122: 周公湖村 | G122: 周公湖村烂泥组（学海路）公路硬化项目 | H122: 基础设施建设 | I122: 周公湖村烂泥组 | J122: 2022-11-01 | K122: 2022-12-01 | L122: 周公湖村 | M122: 烂泥组道路 硬化长180米、宽3米 | N122: =O122+P122+Q122+R122 -> 6 | O122: 6 | R122: 0 | S122: 1 | T122: 12 | U122: 43 | V122: 0 | W122: 3 | X122: 6 | Y122: 项目带动脱贫人口直接受益6人 | Z122: ①提高群众生产生活水平②解决脱贫户3户6人的出行安全及发展经济问题 | AB122: 沅振发〔2022〕11号 | AC122: 6 | AD122: 沅财农指〔2022〕21号
A123: 38 | B123: 产业发展项目 | C123: 配套基础 | D123: 产业园 | E123: 新湾镇 | F123: 新湾村 | G123: 新湾村产业发展柑橘品改基地水利配套（喷滴灌）建设项目 | H123: 产业发展 | I123: 新湾村张家村组、东兴组 | J123: 2022-10-01 | K123: 2022-12-01 | L123: 新湾村 | M123: 新湾村张家村组、东兴组70亩喷滴灌安装 | N123: =O123+P123+Q123+R123 -> 10 | O123: 10 | R123: 0 | S123: 1 | T123: 76 | U123: 190 | V123: 1 | W123: 7 | X123: 13 | Y123: 项目带动脱贫人口直接受益13人 | Z123: ①农户通过土地流转，增加了群众经济收入②带动了当地的产业发展，解决了群众的就业 | AB123: 沅振发〔2022〕11号 | AC123: 10 | AD123: 沅财农指〔2022〕21号
A124: 39 | B124: 乡村建设行动 | C124: 农村基础设施 | D124: 农村道路建设 | E124: 新湾镇 | F124: 莲花村 | G124: 新湾镇莲花村罗家组至横冲组公里硬化项目 | H124: 基础设施建设 | I124: 莲花村罗家组-横冲组 | J124: 2022-10-01 | K124: 2022-12-01 | L124: 莲花村 | M124: 罗家组-横冲组道路硬化125米 | N124: =O124+P124+Q124+R124 -> 5 | O124: 5 | R124: 0 | S124: 1 | T124: 45 | U124: 180 | V124: 0 | W124: 2 | X124: 7 | Y124: 项目带动脱贫人口直接受益7人 | Z124: 提高群众生产生活水平，解决脱贫户2户7人道路出行问题 | AB124: 沅振发〔2022〕11号 | AC124: 5 | AD124: 沅财农指〔2022〕21号
A125: 40 | B125: 乡村建设行动 | C125: 农村基础设施 | D125: 农村道路建设 | E125: 新湾镇 | F125: 莲花村 | G125: 新湾镇莲花村朱雀组公路硬化项目 | H125: 基础设施建设 | I125: 莲花村朱雀组 | J125: 2022-10-01 | K125: 2022-12-01 | L125: 莲花村 | M125: 朱雀组道路硬化750米 | N125: =O125+P125+Q125+R125 -> 30 | O125: 30 | R125: 0 | S125: 1 | T125: 56 | U125: 208 | V125: 0 | W125: 5 | X125: 15 | Y125: 项目带动脱贫人口直接受益15人 | Z125: 提高群众生产生活水平，解决脱贫户5户15人道路出行问题 | AB125: 县级 | AC125: 30 | AD125: 沅财农指〔2022〕23号
A126: 41 | B126: 乡村建设行动 | C126: 人居环境整治 | D126: 村容村貌提升 | E126: 新湾镇 | F126: 桥北村 | G126: 桥北村人居环境整治建设 | H126: 人居环境整治 | I126: 桥北村 | J126: 2022-09-01 | K126: 2022-10-01 | L126: 桥北村 | M126: 村容村貌提升 | N126: =O126+P126+Q126+R126 -> 30 | O126: 30 | R126: 0 | S126: 1 | T126: 188 | U126: 442 | V126: 0 | W126: 1 | X126: 2 | Y126: 项目带动脱贫人口直接受益2人 | Z126: 人居环境整治建设，提升群众生活环境 | AB126: 沅振发〔2022〕11号 | AC126: 30 | AD126: 沅财农指〔2022〕21号
A127: 42 | B127: 乡村建设行动 | C127: 农村基础设施 | D127: 农村道路建设 | E127: 新湾镇 | F127: 桥北村 | G127: 桥北村道路及配套设施建设 | H127: 基础设施 | I127: 桥北村 | J127: 2022-09-01 | K127: 2022-10-01 | L127: 桥北村 | M127: 桥北村道路及配套设施建设 | N127: =O127+P127+Q127+R127 -> 40 | O127: 40 | R127: 0 | S127: 1 | T127: 194 | U127: 481 | V127: 0 | W127: 5 | X127: 13 | Y127: 项目带动脱贫人口直接受益13人 | Z127: 完善村级基础设施配套设施，提高群众生产生活水平 | AB127: 县级 | AC127: 40 | AD127: 沅财农指〔2022〕22号
A128: 1 | B128: 乡村建设行动 | C128: 农村基础设施 | D128: 农村道路建设（通村、通户路） | E128: 南嘴镇 | F128: 和谐村 | G128: 南嘴镇和谐村-基础设施-公路硬化 | H128: 新建 | I128: 南嘴镇和谐村 | J128: 2022-03-01 | K128: 2022-06-01 | L128: 乡村振兴局 | M128: 道路维护1.2公里 | N128: =O128+P128+Q128+R128 -> 57.6 | O128: 40 | R128: 17.6 | S128: 1 | T128: 50 | U128: 90 | V128: 0 | W128: 4 | X128: 12 | Y128: 提高通行质量，保证生产 | Z128: 保证农户的农产品通行。
A129: 2 | B129: 乡村建设行动 | C129: 农村基础设施 | D129: 农村供水保障设施建设 | E129: 南嘴镇 | F129: 百家沟村 | G129: 南嘴镇百家沟村-基础设施-山塘整修项目 | H129: 改扩建 | I129: 南嘴镇百家沟村 | J129: 2022-03-01 | K129: 2024-12-01 | L129: 乡村振兴局 | M129: 改扩建6口山塘，新修塘坋等，清运5万立方淤泥 | N129: =O129+P129+Q129+R129 -> 100 | O129: 90 | R129: 10 | S129: 1 | T129: 1225 | U129: 4162 | V129: 1 | W129: 116 | X129: 272 | Y129: 提高生产生活条件，确保旱涝保收 | Z129: 提高生产生活条件，确保旱涝保收
A130: 3 | B130: 乡村建设行动 | C130: 农村基础设施 | D130: 农村供水保障设施建设 | E130: 南嘴镇 | F130: 百家沟村 | G130: 南嘴镇百家沟村-基础设施-山塘整修项目 | H130: 改扩建 | I130: 南嘴镇百家沟村 | J130: 2022-01-01 | K130: 2024-12-01 | L130: 乡村振兴局 | M130: 渠道清淤5000米 | N130: =O130+P130+Q130+R130 -> 50 | O130: 45 | R130: 5 | S130: 1 | T130: 1225 | U130: 4162 | V130: 1 | W130: 116 | X130: 272 | Y130: 提高生产生活条件，确保旱涝保收 | Z130: 提高生产生活条件，确保旱涝保收
A131: 4 | B131: 乡村建设行动 | C131: 农村基础设施 | D131: 农村道路建设（通村、通户路） | E131: 南嘴镇 | F131: 百家沟村 | G131: 南嘴镇百家沟村-基础设施-公路硬化 | H131: 新建及改扩建 | I131: 南嘴镇百家沟村 | J131: 2022-03-01 | K131: 2024-12-01 | L131: 乡村振兴局 | M131: 公路硬化3.5公里 | N131: =O131+P131+Q131+R131 -> 400 | O131: 380 | R131: 20 | S131: 1 | T131: 1225 | U131: 4162 | V131: 1 | W131: 116 | X131: 272 | Y131: 提高生产生活条件，保障群众安全出行 | Z131: 提高生产生活条件，保障群众安全出行
A132: 5 | B132: 乡村建设行动 | C132: 农村基础设施 | D132: 农村道路建设（通村、通户路） | E132: 南嘴镇 | F132: 百家沟村 | G132: 南嘴镇百家沟村-基础设施-公路两侧配套设施建设 | H132: 新建 | I132: 南嘴镇百家沟村 | J132: 2022-01-01 | K132: 2024-12-01 | L132: 乡村振兴局 | M132: 公路两侧配套设施建设 | N132: =O132+P132+Q132+R132 -> 60 | O132: 55 | R132: 5 | S132: 1 | T132: 1225 | U132: 4162 | V132: 1 | W132: 116 | X132: 272 | Y132: 提高生产生活条件，保障群众安全出行 | Z132: 提高生产生活条件，保障群众安全出行
A133: 6 | B133: 乡村建设行动 | C133: 农村基础设施 | D133: 农村供水保障设施建设 | E133: 南嘴镇 | F133: 百家沟村 | G133: 南嘴镇百家沟村-基础设施-山塘整修项目 | H133: 新建 | I133: 南嘴镇百家沟村 | J133: 2022-01-01 | K133: 2024-12-01 | L133: 乡村振兴局 | M133: 种植花树3000株 | N133: =O133+P133+Q133+R133 -> 60 | O133: 55 | R133: 5 | S133: 1 | T133: 1225 | U133: 4162 | V133: 1 | W133: 116 | X133: 272 | Y133: 美化乡村，提高生产生活条件，建设美丽乡村 | Z133: 提高生产生活条件，建设美丽乡村
A134: 7 | B134: 乡村建设行动 | C134: 农村基础设施 | D134: 农村道路建设（通村、通户路） | E134: 南嘴镇 | F134: 目平湖南村 | G134: 南嘴镇目平湖南村-基础设施-一、二、三、五、六、七、九组公路硬化 | H134: 新建 | I134: 南嘴镇目平湖南村 | J134: 2022-01-01 | K134: 2023-12-01 | L134: 乡村振兴局 | M134: 公路硬化 | N134: =O134+P134+Q134+R134 -> 320 | O134: 300 | R134: 20 | S134: 1 | T134: 106 | U134: 218 | V134: 1 | W134: 106 | X134: 218 | Y134: 方便农产品出行 | Z134: 群众收入增收
A135: 8 | B135: 乡村建设行动 | C135: 农村基础设施 | D135: 农村供水保障设施建设 | E135: 南嘴镇 | F135: 目平湖南村 | G135: 南嘴镇目平湖南村-基础设施-沟港疏洗 | H135: 扩建 | I135: 南嘴镇目平湖南村 | J135: 2022-01-01 | K135: 2023-12-01 | L135: 乡村振兴局 | M135: 沟港疏洗 | N135: =O135+P135+Q135+R135 -> 50 | O135: 40 | R135: 10 | S135: 1 | T135: 106 | U135: 218 | V135: 1 | W135: 106 | X135: 218 | Y135: 方便群众农田灌溉 | Z135: 群众收入增收
A136: 9 | B136: 乡村建设行动 | C136: 农村基础设施 | D136: 农村道路建设（通村、通户路） | E136: 南嘴镇 | F136: 目平湖南村 | G136: 南嘴镇目平湖南村-基础设施-道路两侧配套设施 | H136: 新建 | I136: 南嘴镇目平湖南村 | J136: 2022-12-01 | K136: 2023-12-01 | L136: 乡村振兴局 | M136: 道路两侧配套设施 | N136: =O136+P136+Q136+R136 -> 30 | O136: 25 | R136: 5 | S136: 1 | T136: 106 | U136: 218 | V136: 1 | W136: 106 | X136: 218 | Y136: 农户收工晚 | Z136: 群众安全出行
A137: 10 | B137: 乡村建设行动 | C137: 农村基础设施 | D137: 农村供水保障设施建设 | E137: 南嘴镇 | F137: 目平湖南村 | G137: 南嘴镇目平湖南村-基础设施-汲水堤 | H137: 新建 | I137: 南嘴镇目平湖南村 | J137: 2022-04-01 | K137: 2023-12-01 | L137: 乡村振兴局 | M137: 汲水堤 | N137: =O137+P137+Q137+R137 -> 200 | O137: 190 | R137: 10 | S137: 1 | T137: 106 | U137: 218 | V137: 1 | W137: 106 | X137: 218 | Y137: 方便群众出行 | Z137: 群众收入增收
A138: 11 | B138: 乡村建设行动 | C138: 农村基础设施 | D138: 农村道路建设（通村、通户路） | E138: 南嘴镇 | F138: 目平湖南村 | G138: 南嘴镇目平湖南村-基础 设施-南北东西港两侧配套设施 | H138: 新增 | I138: 南嘴镇目平湖南村 | J138: 2022-12-01 | K138: 2023-12-01 | L138: 乡村振兴局 | M138: 南北东西港两侧配套设施 | N138: =O138+P138+Q138+R138 -> 20 | O138: 15 | R138: 5 | S138: 1 | T138: 106 | U138: 218 | V138: 1 | W138: 106 | X138: 218 | Y138: 改善环境 | Z138: 改善环境
A139: 12 | B139: 乡村建设行动 | C139: 农村基础设施 | D139: 农村供水保障设施建设 | E139: 南嘴镇 | F139: 南嘴村 | G139: 南嘴镇南嘴村-基础设施-山塘清淤 | H139: 改造 | I139: 南嘴镇南嘴村 | J139: 2022-03-01 | K139: 2022-05-01 | L139: 乡村振兴局 | M139: 对原东村的山塘进行修护、清淤 | N139: =O139+P139+Q139+R139 -> 30 | O139: 30 | R139: 0 | S139: 1 | T139: 320 | U139: 935 | V139: 0 | W139: 30 | X139: 61 | Y139: 通过维修保证水质安全 | Z139: 保证农业生产用水安全
A140: 13 | B140: 乡村建设行动 | C140: 农村基础设施 | D140: 农村道路建设（通村、通户路） | E140: 南嘴镇 | F140: 南嘴村 | G140: 南嘴镇南嘴村-基础设施-公路硬化 | H140: 新建 | I140: 南嘴镇南嘴村 | J140: 2022-05-01 | K140: 2022-08-01 | L140: 乡村振兴局 | M140: 公路硬化8公里 | N140: =O140+P140+Q140+R140 -> 160 | O140: 100 | R140: 60 | S140: 1 | T140: 150 | U140: 450 | V140: 0 | W140: 86 | X140: 189 | Y140: 提高通行质量，保证生产生活 | Z140: 保证农户的农副产品运输畅通，和农户的出行安全
A141: 14 | B141: 乡村建设行动 | C141: 农村基础设施 | D141: 农村供水保障设施建设 | E141: 南嘴镇 | F141: 张家村 | G141: 南嘴镇兴南村-基础设施-电排渠道清淤 | H141: 扩建 | I141: 南嘴镇张家村河州 | J141: 2022-03-01 | K141: 2023-12-01 | L141: 乡村振兴局 | M141: 清淤1000米 | N141: =O141+P141+Q141+R141 -> 10 | O141: 6 | R141: 4 | S141: 1 | T141: 220 | U141: 600 | V141: 0 | W141: 26 | X141: 53 | Y141: 确保排渍畅通 | Z141: 确保排渍畅通
A142: 15 | B142: 乡村建设行动 | C142: 农村基础设施 | D142: 农村道路建设（通村、通户路） | E142: 南嘴镇 | F142: 张家村 | G142: 南嘴镇兴南村-基础设施-张家村片主公路提质改造 | H142: 改造 | I142: 南嘴镇张家村 | J142: 2022-03-01 | K142: 2023-12-01 | L142: 乡村振兴局 | M142: 道路建设 | N142: =O142+P142+Q142+R142 -> 150 | O142: 80 | R142: 70 | S142: 1 | T142: 320 | U142: 930 | V142: 0 | W142: 23 | X142: 50 | Y142: 农产品运输畅通与农户出行安全 | Z142: 农产品运输畅通与农户出行安全
A143: 16 | B143: 乡村建设行动 | C143: 农村基础设施 | D143: 农村供水保障设施建设 | E143: 南嘴镇 | F143: 周家村 | G143: 南嘴镇兴南村-基础设施-周家村排水闸 | H143: 新建 | I143: 南嘴镇周家村 | J143: 2022-03-01 | K143: 2023-12-01 | L143: 乡村振兴局 | M143: 排水闸新建 | N143: =O143+P143+Q143+R143 -> 30 | O143: 18 | R143: 12 | S143: 1 | T143: 240 | U143: 740 | V143: 0 | W143: 30 | X143: 61 | Y143: 确保旱涝保收 | Z143: 确保旱涝保收
A144: 17 | B144: 乡村建设行动 | C144: 农村基础设施 | D144: 农村道路建设（通村、通户路） | E144: 南嘴镇 | F144: 兴南村 | G144: 南嘴镇兴南村-基础设施-柑橘产业园滴灌与机耕道 | H144: 新建 | I144: 南嘴镇兴南村 | J144: 2022-03-01 | K144: 2023-12-01 | L144: 乡村振兴局 | M144: 产业园面积共1200亩 | N144: =O144+P144+Q144+R144 -> 240 | O144: 140 | R144: 100 | S144: 1 | T144: 240 | U144: 740 | V144: 0 | W144: 30 | X144: 61 | Y144: 利于柑橘生长，提高亩产与增加村民收益 | Z144: 利于柑橘生长，提高亩产与增加村民收益
A145: 18 | B145: 乡村建设行动 | C145: 农村基础设施 | D145: 农村道路建设（通村、通户路） | E145: 南嘴镇 | F145: 目北村 | G145: 南嘴镇目北村-基础设施-道路硬化10公里 | H145: 新建 | I145: 南嘴镇目北村 | J145: 2022-01-01 | K145: 2023-09-01 | L145: 乡村振兴局 | M145: 道路硬化10公里 | N145: =O145+P145+Q145+R145 -> 400 | O145: 350 | R145: 50 | S145: 1 | T145: 715 | U145: 2145 | V145: 0 | W145: 75 | X145: 156 | Y145: 通过通行质量，保证生产 | Z145: 保证农户的农产品通行
A146: 19 | B146: 乡村建设行动 | C146: 农村基础设施 | D146: 农村供水保障设施建设 | E146: 南嘴镇 | F146: 目北村 | G146: 南嘴镇目北村-基础设施-渠道清淤10公里 | H146: 维修 | I146: 南嘴镇目北村 | J146: 2022-11-01 | K146: 2023-11-01 | L146: 乡村振兴局 | M146: 渠道清淤10公里 | N146: =O146+P146+Q146+R146 -> 90 | O146: 15 | R146: 75 | S146: 1 | T146: 715 | U146: 2145 | V146: 0 | W146: 75 | X146: 156 | Y146: 通过维修保证水质安全 | Z146: 保证农业生产用水安全
A147: 20 | B147: 产业发展项目 | C147: 生产项目 | D147: 种植业基地 | E147: 南嘴镇 | F147: 和谐村 | G147: 南嘴镇和谐村-产业发展-种植品种改良项目 | H147: 扩建 | I147: 南嘴镇和谐村 | J147: 2022-03-01 | K147: 2023-06-01 | L147: 农业农村局 | M147: 1.基地改扩建1000亩。2.种子种苗提质改良600亩。3.设置防护栏设施4000米。 | N147: =O147+P147+Q147+R147 -> 220 | O147: 150 | R147: 70 | S147: 1 | T147: 40 | U147: 78 | V147: 0 | W147: 54 | X147: 109 | Y147: 通过村级入股和吸纳农户共同参与经营，项目改建后，预计年收益农户每亩增收3000元以上，带动周边54户，109人每年增加收入1200元 | Z147: 合作社帮助和扶持有产业能力的群众引进新技术、新品种、新模式，做好产、供、销各环节服务
A148: 21 | B148: 产业发展项目 | C148: 生产项目 | D148: 种植业基地 | E148: 南嘴镇 | F148: 百家沟村 | G148: 南嘴镇百家沟村-产业发展-柑桔品种改良项目 | H148: 新建 | I148: 南嘴镇百家沟村 | J148: 2022-02-01 | K148: 2022-12-01 | L148: 农业农村局 | M148: 1.基地改扩建1000亩。2.柑桔种苗提质改良1000亩。3.设置防护栏设施4000米。4.道路维护2公里。5新建滴灌设施 | N148: =O148+P148+Q148+R148 -> 400 | O148: 380 | R148: 20 | S148: 1 | T148: 300 | U148: 725 | V148: 1 | W148: 116 | X148: 272 | Y148: 通过村级入股和吸纳农户共同参与经营，项目改建后，预计年收益农户每亩增收1000元以上，村集体经济收入5万元以上 | Z148: 1.通过土地托管或土地流转，参与群众土地流转费用750元/亩/年，年前一次性付清。2.项目可安排30名农户就近就业，工资为120元-180元/天。3.合作社帮助和扶持有产业能力的群众引进新技术、新品种、新模式，做好产、供、销各环节服务。
A149: 22 | B149: 产业发展项目 | C149: 生产项目 | D149: 种植业基地 | E149: 南嘴镇 | F149: 百家沟村 | G149: 南嘴镇百家沟村-产业发展-红薯深加工项目 | H149: 新建 | I149: 南嘴镇百家沟村 | J149: 2022-02-01 | K149: 2022-12-01 | L149: 农业农村局 | M149: 1.新建400亩红薯基地，配备红薯深加工机械设备 | N149: =O149+P149+Q149+R149 -> 300 | O149: 280 | R149: 20 | S149: 1 | T149: 1225 | U149: 4162 | V149: 1 | W149: 40 | X149: 68 | Y149: 通过村级入股和吸纳农户共同参与经营，项目改建后，预计年收益农户每亩增收400元以上，村集体经济收入5万元 | Z149: 1.通过土地托管或土地流转，参与群众土地流转费用750元/亩/年，年前一次性付清。2.项目可安排30名农户就近就业，工资为120元-180元/天。3.合作社帮助和扶持有产业能力的群众引进新技术、新品种、新模式，做好产、供、销各环节服务。
A150: 23 | B150: 产业发展项目 | C150: 生产项目 | D150: 养殖业基地 | E150: 南嘴镇 | F150: 百家沟村 | G150: 南嘴镇百家沟村-产业发展-家禽养殖项目 | H150: 新建 | I150: 南嘴镇百家沟村 | J150: 2022-02-01 | K150: 2024-12-01 | L150: 农业农村局 | M150: 家禽养殖（鸡鸭鹅猪） | N150: =O150+P150+Q150+R150 -> 200 | O150: 190 | R150: 10 | S150: 1 | T150: 1225 | U150: 4162 | V150: 1 | W150: 116 | X150: 272 | Y150: 通过村级入股和吸纳农户共同参与经营，项目改建后，预计年收益农户增收1000元以上，村集体经济收入5万元. | Z150: 合作社帮助和扶持有产业能力的群众引进新技术，做好产、供、销各环节服务
A151: 24 | B151: 产业发展项目 | C151: 生产项目 | D151: 休闲农业与乡村旅游 | E151: 南嘴镇 | F151: 百家沟村 | G151: 南嘴镇百家沟村-产业发展-农家乐项目 | H151: 新建 | I151: 南嘴镇百家沟村 | J151: 2022-02-02 | K151: 2024-12-02 | L151: 农业农村局 | M151: 建设6-8家农家乐 | N151: =O151+P151+Q151+R151 -> 400 | O151: 300 | R151: 100 | S151: 1 | T151: 300 | U151: 1125 | V151: 1 | W151: 116 | X151: 272 | Y151: 通过村级入股和吸纳农户共同参与经营，项目改建后，预计年收益农户增收500元以上，村集体经济收入5万元. | Z151: 打造民宿文化，带动农产品销售，提高农户收入，创建美丽乡村
A152: 25 | B152: 产业发展项目 | C152: 生产项目 | D152: 种植业基地 | E152: 南嘴镇 | F152: 蠡山村 | G152: 南嘴镇蠡山村-产业发展-种植品种改良项目 | H152: 扩建 | I152: 南嘴镇蠡山村 | J152: 2022-03-01 | K152: 2025-12-01 | L152: 农业农村局 | M152: 拓展廖家村黄桃产业1.基地改扩建500亩。2.种苗提质改良500亩。3.设置防护栏设施6000米。 | N152: =O152+P152+Q152+R152 -> 300 | O152: 270 | R152: 30 | S152: 1 | T152: 200 | U152: 321 | V152: 0 | W152: 28 | X152: 89 | Y152: 通过村级入股和吸纳农户共同参与经营，项目改建后，预计年收益农户每亩增收2000元以上，带动周边28户，89人每年增加收入1000元 | Z152: 合作社帮助和扶持有产业能力的群众引进新技术、新品种、新模式，做好产、供、销各环节服务
A153: 26 | B153: 产业发展项目 | C153: 生产项目 | D153: 种植业基地 | E153: 南嘴镇 | F153: 南嘴村 | G153: 南嘴镇南嘴村-产业发展-种植品种改良 | H153: 扩建 | I153: 南嘴镇南嘴村 | J153: 2022-01-01 | K153: 2022-05-01 | L153: 农业农村局 | M153: 茶油基地扩建500亩 | N153: =O153+P153+Q153+R153 -> 80 | O153: 80 | R153: 0 | S153: 1 | T153: 220 | U153: 388 | V153: 0 | W153: 42 | X153: 74 | Y153: 通过吸纳农户共同参与经营，项目改建后，预计年收益农户每亩增收600元以上，村集体经济收入2万元以上，带动周边196户，388人每年增加收入500元 | Z153: 帮助和扶持有产业能力的群众引进新技术、新品种、新模式，做好产、供、销各环节服务。
A154: 27 | B154: 产业发展项目 | C154: 配套基础设施项目 | D154: 产业园（区） | E154: 南嘴镇 | F154: 南嘴村 | G154: 南嘴镇南嘴村-产业发展-土地流转1000亩 | H154: 整合 | I154: 南嘴镇南嘴村 | J154: 2022-03-01 | K154: 2023-03-01 | L154: 农业农村局 | M154: 土地流转1000亩 | N154: =O154+P154+Q154+R154 -> 28 | O154: 28 | R154: 0 | S154: 1 | T154: 150 | U154: 450 | V154: 0 | W154: 25 | X154: 63 | Y154: 农户每亩增收320，集体经济收入5万 | Z154: 土地流转每亩680元可安排农户就业45人
A155: 28 | B155: 产业发展项目 | C155: 配套基础设施项目 | D155: 产业园（区） | E155: 南嘴镇 | F155: 目北村 | G155: 南嘴镇目北村-产业发展-土地流转1200亩 | H155: 整合 | I155: 南嘴镇目北村 | J155: 2022-01-01 | K155: 2022-01-01 | L155: 农业农村局 | M155: 土地流转1200亩 | N155: =O155+P155+Q155+R155 -> 30 | O155: 20 | R155: 10 | S155: 1 | T155: 150 | U155: 450 | V155: 0 | W155: 75 | X155: 156 | Y155: 农户每亩增收320，集体经济收入5万 | Z155: 土地流转每亩680元，可安排农户就业50人
A156: 29 | B156: 产业发展项目 | C156: 生产项目 | D156: 水产养殖业发展 | E156: 南嘴镇 | F156: 目北村 | G156: 南嘴镇目北村-产业发展-稻虾种养4000亩 | H156: 提质改造 | I156: 南嘴镇目北村 | J156: 2022-01-01 | K156: 2022-01-01 | L156: 农业农村局 | M156: 稻虾种养4000亩 | N156: =O156+P156+Q156+R156 -> 80 | O156: 50 | R156: 30 | S156: 1 | T156: 300 | U156: 1869 | V156: 0 | W156: 75 | X156: 156 | Y156: 农户每亩增收320，集体经济收入5万 | Z156: 土地流转每亩680元，可安排农户就业50人
A157: 30 | B157: 乡村建设行动 | C157: 农村基础设施 | D157: 农村道路建设（通村、通户路） | E157: 南嘴镇 | F157: 蠡山村 | G157: 高家湾与晚谷村组级公路硬化 | H157: 新建 | I157: 蠡山村 | J157: 2022-03-01 | K157: 2022-06-01 | L157: 乡村振兴局 | M157: 0.8公里道路硬化 | N157: =O157+P157+Q157+R157 -> 32 | O157: 12 | R157: 20 | S157: 1 | T157: 95 | U157: 286 | V157: 0 | W157: 23 | X157: 79 | Y157: 满意度指标、服务对象满意度指标、受益建档立卡贫困人口满意度≥95% | Z157: ①完善村级基础设施，提高群众生产生活水平； | AB157: 沅振发〔2022〕1号 | AC157: 12 | AD157: 沅财农指〔2022〕2号
A158: 31 | B158: 产业发展项目 | C158: 配套基础设施项目 | D158: 产业园（区） | E158: 南嘴镇 | F158: 百家沟村 | G158: 百家沟村品改基地公路硬化项目 | H158: 新建 | I158: 百家沟村 | J158: 2022-05-01 | K158: 2022-06-06 | L158: 乡村振兴局 | M158: 1.8公里道路新建 | N158: =O158+P158+Q158+R158 -> 70 | O158: 70 | R158: 0 | S158: 1 | T158: 209 | U158: 627 | V158: 1 | W158: 53 | X158: 121 | Y158: 满意度指标、服务对象满意度指标、受益建档立卡贫困人口满意度≥95% | Z158: ①完善村级基础设施，提高群众生产生活水平； | AB158: 沅振发〔2022〕1号 | AC158: 20 | AD158: 沅财农指〔2022〕2号
A159: 32 | B159: 乡村建设行动 | C159: 农村基础设施 | D159: 农村道路建设（通村、通户路） | E159: 南嘴镇 | F159: 南嘴村 | G159: 南嘴村罗家排组至刘家湾组731乡道接口处路基拓宽 | H159: 新建 | I159: 南嘴村 | J159: 2021-09-01 | K159: 2022-10-01 | L159: 乡村振兴局 | M159: 2.6公里路基拓宽 | N159: =O159+P159+Q159+R159 -> 55 | O159: 5 | R159: 50 | S159: 4 | T159: 2800 | U159: 8400 | V159: 0 | W159: 30 | X159: 70 | Y159: 满意度指标、服务对象满意度指标、受益建档立卡贫困人口满意度≥95% | Z159: ①完善村级基础设施，提高群众生产生活水平； | AB159: 沅振发〔2022〕1号 | AC159: 5 | AD159: 沅财农指〔2022〕2号
A160: 33 | B160: 乡村建设行动 | C160: 农村基础设施 | D160: 农村道路建设（通村、通户路） | E160: 南嘴镇 | F160: 目北村 | G160: 目北村道路硬化的路基平整 | H160: 改扩建 | I160: 目北村 | J160: 2022-01-01 | K160: 2022-04-06 | L160: 乡村振兴局 | M160: 2公里路基平整 | N160: =O160+P160+Q160+R160 -> 40 | O160: 40 | R160: 0 | S160: 1 | T160: 120 | U160: 380 | V160: 0 | W160: 20 | X160: 45 | Y160: 满意度指标、服务对象满意度指标、受益建档立卡贫困人口满意度≥95% | Z160: ①完善村级基础设施，提高群众生产生活水平； | AB160: 沅振发〔2022〕1号 | AC160: 5 | AD160: 沅财农指〔2022〕2号
A161: 34 | B161: 产业发展项目 | C161: 生产项目 | D161: 种植业基地 | E161: 南嘴镇 | F161: 百家沟村 | G161: 百家沟村产业园建设 | H161: 新建 | I161: 百家沟村 | J161: 2022-09-01 | K161: 2022-12-01 | L161: 乡村振兴局 | M161: 1、柑桔品改基地建设 2、红薯深加工生产线 3、冷水鱼养殖山塘维修 | N161: =O161+P161+Q161+R161 -> 128 | O161: 80 | R161: 48 | S161: 1 | T161: 1488 | U161: 4247 | V161: 1 | W161: 118 | X161: 281 | Y161: 满意度指标、服务对象满意度指标、受益建档立卡贫困人口满意度≥95% | Z161: ①完善村级基础设施，提高群众生产生活水平； ②增加村集体经济，带动群众增收增产。 | AB161: 中央602 沅振发〔2022〕5号 | AC161: 80 | AD161: 沅财农指〔2022〕8号
A162: 35 | B162: 乡村建设行动 | C162: 农村基础设施 | D162: 产业路建设 | E162: 南嘴镇 | F162: 和谐村 | G162: 油茶基地基干道建设 | H162: 新建 | I162: 和谐村 | J162: 2022-10-01 | K162: 202年10月 | L162: 乡村振兴局 | M162: 油茶基地基干道建设 | N162: =O162+P162+Q162+R162 -> 13 | O162: 10 | R162: 3 | S162: 1 | T162: 136 | U162: 408 | V162: 0 | W162: 0 | X162: 13 | Y162: 提高村民收入 | Z162: 推动油茶发展 | AB162: 中央602 沅振发〔2022〕5号 | AC162: 10 | AD162: 沅财农指〔2022〕8号
A163: 36 | B163: 乡村建设行动 | C163: 农村基础设施 | D163: 农村道路建设（通村、通户路） | E163: 南嘴镇 | F163: 南嘴村 | G163: 南嘴村示范路周家湾段建设 | H163: 新建 | I163: 南嘴村 | J163: 2022-07-01 | K163: 2022-08-31 | L163: 乡村振兴局 | M163: 示范路路基扩宽 | N163: =O163+P163+Q163+R163 -> 8 | O163: 5 | R163: 3 | S163: 1 | T163: 347 | U163: 1877 | V163: 0 | W163: 21 | X163: 122 | Y163: 满意度指标、服务对象满意度指标、受益建档立卡贫困人口满意度≥95% | Z163: ①完善村级基础设施，提高群众生产生活水平； ②增加村集体经济，带动群众增收增产。 | AB163: 省第二批沅振发〔2022〕9号 | AC163: 5 | AD163: 沅财农指〔2022〕13号
A164: 37 | B164: 产业发展项目 | C164: 配套基础设施项目 | D164: 产业园区 | E164: 南嘴镇 | F164: 兴南村 | G164: 兴南村产业路拓宽整修 | H164: 扩建 | I164: 兴南村 | J164: 2022-09-01 | K164: 2022-09-01 | L164: 乡村振兴局 | M164: 2公里主路拓宽1.5米 | N164: =O164+P164+Q164+R164 -> 35 | O164: 10 | R164: 25 | S164: 1 | T164: 304 | U164: 987 | V164: 0 | W164: 21 | X164: 39 | Y164: 满意度指标、服务对象满意度指标、受益建档立卡贫困人口满意度≥95% | Z164: ①完善村级基础设施，提高群众生产生活水平； ②增加村集体经济，带动群众增收增产。 | AB164: 省第二批沅振发〔2022〕9号 | AC164: 10 | AD164: 沅财农指〔2022〕13号
A165: 38 | B165: 产业发展项目 | C165: 生产项目 | D165: 种植业基地 | E165: 南嘴镇 | F165: 百家沟村 | G165: 柑桔品改 | H165: 新建 | I165: 百家沟村 | J165: 2022-10-01 | K165: 2023-04-01 | L165: 乡村振兴局 | M165: 柑桔品改基地建设 | N165: =O165+P165+Q165+R165 -> 45 | O165: 45 | R165: 0 | S165: 1 | T165: 1488 | U165: 4247 | V165: 1 | W165: 118 | X165: 281 | Y165: 满意度指标、服务对象满意度指标、受益建档立卡贫困人口满意度≥95% | Z165: ①完善村级基础设施，提高群众生产生活水平； ②增加村集体经济，带动群众增收增产。
A166: 39 | B166: 产业发展项目 | C166: 生产项目 | D166: 种植业基地 | E166: 南嘴镇 | F166: 百家沟村 | G166: 红薯深加工项目 | H166: 新建 | I166: 百家沟村 | J166: 2022-09-01 | K166: 2022-12-01 | L166: 乡村振兴局 | M166: 红薯深加工生产线 | N166: =O166+P166+Q166+R166 -> 45 | O166: 45 | R166: 0 | S166: 1 | T166: 1488 | U166: 4247 | V166: 1 | W166: 118 | X166: 281 | Y166: 满意度指标、服务对象满意度指标、受益建档立卡贫困人口满意度≥95% | Z166: ①完善村级基础设施，提高群众生产生活水平； ②增加村集体经济，带动群众增收增产。
A167: 40 | B167: 乡村建设行动 | C167: 农村基础设施 | D167: 农村供水保障设施建设 | E167: 南嘴镇 | F167: 百家沟村 | G167: 山塘整修及沟港清淤 | H167: 新建 | I167: 百家沟村 | J167: 2022-11-01 | K167: 2023-03-01 | L167: 乡村振兴局 | M167: 山塘整修及沟港清淤 | N167: =O167+P167+Q167+R167 -> 40 | O167: 40 | R167: 0 | S167: 1 | T167: 1488 | U167: 4247 | V167: 1 | W167: 118 | X167: 281 | Y167: 满意度指标、服务对象满意度指标、受益建档立卡贫困人口满意度≥95% | Z167: ①完善村级基础设施，提高群众生产生活水平； ②增加村集体经济，带动群众增收增产。
A168: 41 | B168: 乡村建设行动 | C168: 农村公共服务 | D168: 其他 | E168: 南嘴镇 | F168: 百家沟村 | G168: 文化广场新建 | H168: 新建 | I168: 百家沟村 | J168: 2022-09-01 | K168: 2022-12-31 | L168: 乡村振兴局 | M168: 包括篮球场新建、健身场所新建等 | N168: =O168+P168+Q168+R168 -> 85 | O168: 85 | R168: 0 | S168: 1 | T168: 1488 | U168: 4247 | V168: 1 | W168: 118 | X168: 281 | Y168: 满意度指标、服务对象满意度指标、受益建档立卡贫困人口满意度≥95% | Z168: ①完善村级基础设施，提高群众生产生活水平； ②增加村集体经济，带动群众增收增产。
A169: 42 | B169: 产业发展项目 | C169: 配套基础设施项目 | D169: 小型农田水利设施建设 | E169: 南嘴镇 | F169: 目北村 | G169: 南嘴镇目平湖北村沟渠清淤 | H169: 新建 | I169: 目平湖北村 | J169: 2022-10-01 | K169: 2022-12-01 | L169: 乡村振兴局 | M169: 清淤1公里 | N169: =O169+P169+Q169+R169 -> 6 | O169: 3 | R169: 3 | S169: 1 | T169: 65 | U169: 180 | V169: 0 | W169: 11 | X169: 23 | Y169: 满意度指标、服务对象满意度指标、受益建档立卡贫困人口满意度≥95% | Z169: ①完善村级基础设施，提高群众生产生活水平； ②增加村集体经济，带动群众增收增产。 | AB169: 沅振发〔2022〕11号 | AC169: 3 | AD169: 沅财农指〔2022〕21号
A170: 1 | B170: 乡村建设行动 | C170: 农村基础设施 | D170: 农村道路建设 | E170: 草尾镇 | F170: 大福村 | G170: 草尾镇大福村-基础设施-危桥改建项目 | H170: 改扩建 | I170: 草尾镇大福村 | J170: 2022-02-01 | K170: 2022-12-01 | L170: 乡村振兴局 | M170: ①“七一公路与千山红公路”连接线中心桥即大丰6组灌渠桥②七一公路中心桥即村部桥③栋脉渠公路中心桥，共计4座 | N170: =O170+P170+Q170+R170 -> 10 | O170: 10 | R170: 0 | S170: 1 | T170: 220 | U170: 450 | V170: 1 | W170: 50 | X170: 120 | Y170: 项目带动脱贫人口直接受益120人 | Z170: 提高车辆行驶安全度，提升道路运输能力
A171: 2 | B171: 乡村建设行动 | C171: 农村公共服务 | D171: 便民综合服务设施 | E171: 草尾镇 | F171: 大福村 | G171: 草尾镇-大福村-基础设施-建设项目 | H171: 改扩建 | I171: 草尾镇大福村 | J171: 2022-02-01 | K171: 2022-12-01 | L171: 乡村振兴局 | M171: 村级便民服务中心扩建停车坪，修建群众文化广场。共计修建水泥坪400平方米，健身器材若干件 | N171: =O171+P171+Q171+R171 -> 10 | O171: 10 | R171: 0 | S171: 1 | T171: 1100 | U171: 3800 | V171: 1 | W171: 68 | X171: 139 | Y171: 项目带动脱贫人口直接受益139人 | Z171: 提升便民服务中心车辆容纳量，提高周边群众生活质量。
A172: 3 | B172: 乡村建设行动 | C172: 农村基础设施 | D172: 农村道路建设 | E172: 草尾镇 | F172: 大福村 | G172: 草尾镇-大福村-基础设施-公路拓宽项目 | H172: 改扩建 | I172: 草尾镇大福村 | J172: 2022-02-01 | K172: 2022-12-01 | L172: 乡村振兴局 | M172: ①栋脉渠主公路②大丰片中心公路（1-5组，4-9组）③大丰片灌渠公路（6-12组）④“七一公路至千山红镇”连接公路，共计20千米。 | N172: =O172+P172+Q172+R172 -> 10 | O172: 10 | R172: 0 | S172: 1 | T172: 1100 | U172: 3800 | V172: 1 | W172: 68 | X172: 139 | Y172: 项目带动脱贫人口直接受益139人 | Z172: 提升道路运输能力，提高交通安全糸数
A173: 4 | B173: 乡村建设行动 | C173: 农村基础设施 | D173: 农村道路建设 | E173: 草尾镇 | F173: 大福村 | G173: 草尾镇-大福村-基础设施-公路硬化项目 | H173: 新建 | I173: 草尾镇大福村 | J173: 2022-02-01 | K173: 2022-12-01 | L173: 乡村振兴局 | M173: ①大丰片灌渠公路＜断头路＞（6-7组）②大福片“七一公路”与居民线连接公路＜断头路＞③大丰片居民线公路（1-5组）④七一渔场围湖堤公路，共计10千米 | N173: =O173+P173+Q173+R173 -> 10 | O173: 10 | R173: 0 | S173: 1 | T173: 1100 | U173: 3800 | V173: 1 | W173: 68 | X173: 139 | Y173: 项目带动脱贫人口直接受益139人 | Z173: 提高群众生活质量，提升农用物质运输能力
A174: 5 | B174: 乡村建设行动 | C174: 农村基础设施 | D174: 农村道路建设 | E174: 草尾镇 | F174: 大福村 | G174: 草尾镇-大福村-基础设施-公路维修项目 | H174: 改扩建 | I174: 草尾镇大福村 | J174: 2022-02-01 | K174: 2022-12-01 | L174: 乡村振兴局 | M174: 大丰片12-7组灌渠公路。共计8千米 | N174: =O174+P174+Q174+R174 -> 10 | O174: 10 | R174: 0 | S174: 1 | T174: 650 | U174: 1500 | V174: 1 | W174: 68 | X174: 139 | Y174: 项目带动脱贫人口直接受益139人 | Z174: 提高群众出行安全度，提升交通运输能力
A175: 6 | B175: 乡村建设行动 | C175: 农村基础设施 | D175: 农村道路建设 | E175: 草尾镇 | F175: 大福村 | G175: 草尾镇-大福村-基础设施-灌渠硬化项目 | H175: 新建 | I175: 草尾镇大福村 | J175: 2022-02-01 | K175: 2022-12-01 | L175: 乡村振兴局 | M175: 大丰片居民线主灌渠，共计6千米 | N175: =O175+P175+Q175+R175 -> 10 | O175: 10 | R175: 0 | S175: 1 | T175: 650 | U175: 1500 | V175: 1 | W175: 68 | X175: 139 | Y175: 项目带动脱贫人口直接受益139人 | Z175: 提升农田灌溉能力，优化人居环境
A176: 7 | B176: 乡村建设行动 | C176: 农村基础设施 | D176: 其他 | E176: 草尾镇 | F176: 大福村 | G176: 草尾镇-大福村-基础设施-灌渠清淤项目 | H176: 改扩建 | I176: 草尾镇大福村 | J176: 2022-02-01 | K176: 2022-12-01 | L176: 乡村振兴局 | M176: ①大丰片中心灌渠②七一渔场中心灌渠，共计10千米 | N176: =O176+P176+Q176+R176 -> 10 | O176: 10 | R176: 0 | S176: 1 | T176: 650 | U176: 1500 | V176: 1 | W176: 68 | X176: 139 | Y176: 项目带动脱贫人口直接受益139人 | Z176: 提升渠道灌水能力
A177: 8 | B177: 乡村建设行动 | C177: 农村基础设施 | D177: 其他 | E177: 草尾镇 | F177: 大福村 | G177: 草尾镇-大福村-基础设施-机埠维修项目 | H177: 改扩建 | I177: 草尾镇大福村 | J177: 2022-02-01 | K177: 2022-12-01 | L177: 乡村振兴局 | M177: 七一渔场机埠设备更新，共计1座 | N177: =O177+P177+Q177+R177 -> 10 | O177: 10 | R177: 0 | S177: 1 | T177: 650 | U177: 1500 | V177: 1 | W177: 68 | X177: 139 | Y177: 项目带动脱贫人口直接受益139人 | Z177: 提高排积，灌溉能力
A178: 9 | B178: 乡村建设行动 | C178: 农村基础设施 | D178: 其他 | E178: 草尾镇 | F178: 东红村 | G178: 草尾镇东红村-基础设施-桥梁维修项目 | H178: 改扩建 | I178: 东红村 | J178: 2022-03-01 | K178: 2022-07-01 | L178: 乡村振兴局 | M178: 2座 | N178: =O178+P178+Q178+R178 -> 20 | O178: 15 | R178: 5 | S178: 1 | T178: 450 | U178: 1800 | V178: 1 | W178: 21 | X178: 140 | Y178: 项目带动脱贫人口直接受益140人 | Z178: 提高群众生产生活水平
A179: 10 | B179: 乡村建设行动 | C179: 农村基础设施 | D179: 农村道路建设 | E179: 草尾镇 | F179: 东红村 | G179: 草尾镇东红村-基础设施-道路硬化 | H179: 改扩建 | I179: 东红村 | J179: 2022-03-01 | K179: 2022-09-01 | L179: 乡村振兴局 | M179: 18000米 | N179: =O179+P179+Q179+R179 -> 20 | O179: 15 | R179: 5 | S179: 1 | T179: 38 | U179: 124 | V179: 1 | W179: 10 | X179: 38 | Y179: 项目带动脱贫人口直接受益38人 | Z179: 提高群众生产生活水平
A180: 11 | B180: 乡村建设行动 | C180: 农村基础设施 | D180: 其他 | E180: 草尾镇 | F180: 乐园村 | G180: 草尾镇乐园村-基础设施-涵桥修建项目 | H180: 新建 | I180: 乐园村 | J180: 2022-02-01 | K180: 2022-12-01 | L180: 乡村振兴局 | M180: 2处 | N180: =O180+P180+Q180+R180 -> 15 | O180: 12 | R180: 3 | S180: 1 | T180: 412 | U180: 1800 | V180: 1 | W180: 56 | X180: 155 | Y180: 项目带动脱贫人口直接受益155人 | Z180: 提高群众生产生活水平
A181: 12 | B181: 乡村建设行动 | C181: 农村基础设施 | D181: 农村道路建设 | E181: 草尾镇 | F181: 乐园村 | G181: 草尾镇乐园村-基础设施-道路维修项目 | H181: 改扩建 | I181: 乐园村 | J181: 2022-02-01 | K181: 2022-12-01 | L181: 乡村振兴局 | M181: 1.5公里 | N181: =O181+P181+Q181+R181 -> 12 | O181: 10 | R181: 2 | S181: 4 | T181: 2000 | U181: 8000 | V181: 1 | W181: 120 | X181: 360 | Y181: 项目带动脱贫人口直接受益360人 | Z181: 提高群众生产生活水平
A182: 13 | B182: 乡村建设行动 | C182: 农村基础设施 | D182: 其他 | E182: 草尾镇 | F182: 乐园村 | G182: 草尾镇乐园村-基础设施-机耕道修建项目 | H182: 新建 | I182: 乐园村 | J182: 2022-02-01 | K182: 2022-12-01 | L182: 乡村振兴局 | M182: 8000米 | N182: =O182+P182+Q182+R182 -> 18 | O182: 15 | R182: 3 | S182: 1 | T182: 360 | U182: 1520 | V182: 1 | W182: 34 | X182: 88 | Y182: 项目带动脱贫人口直接受益88人 | Z182: 提高群众生产生活水平
A183: 14 | B183: 乡村建设行动 | C183: 农村基础设施 | D183: 农村道路建设 | E183: 草尾镇 | F183: 人和村 | G183: 草尾镇人和村-基础设施-道路扩建项目 | H183: 改扩建 | I183: 人和村 | J183: 2022-03-01 | K183: 2022-12-01 | L183: 乡村振兴局 | M183: 11500米 | N183: =O183+P183+Q183+R183 -> 15 | O183: 10 | R183: 5 | S183: 1 | T183: 480 | U183: 1600 | V183: 1 | W183: 49 | X183: 138 | Y183: 项目带动脱贫人口直接受益138人 | Z183: 提高群众生产生活水平
A184: 15 | B184: 乡村建设行动 | C184: 农村基础设施 | D184: 农村道路建设 | E184: 草尾镇 | F184: 人益村 | G184: 草尾镇人益村-基础设施-道路扩建 | H184: 改扩建 | I184: 人益村 | J184: 2022-03-01 | K184: 2022-12-01 | L184: 乡村振兴局 | M184: 12000米 | N184: =O184+P184+Q184+R184 -> 15 | O184: 10 | R184: 5 | S184: 1 | T184: 500 | U184: 1800 | V184: 1 | W184: 52 | X184: 150 | Y184: 项目带动脱贫人口直接受益150人 | Z184: 提高群众生产生活水平
A185: 16 | B185: 乡村建设行动 | C185: 农村基础设施 | D185: 其他 | E185: 草尾镇 | F185: 三码头村 | G185: 草尾镇三码头村-基础设施-危桥改造项目 | H185: 改扩建 | I185: 三码头村四组 | J185: 2022-01-01 | K185: 2022-12-01 | L185: 乡村振兴局 | M185: 1座 | N185: =O185+P185+Q185+R185 -> 30 | O185: 20 | R185: 10 | S185: 1 | T185: 103 | U185: 358 | V185: 1 | W185: 35 | X185: 108 | Y185: 项目带动脱贫人口直接受益108人 | Z185: 提高群众生产生活水平
A186: 17 | B186: 乡村建设行动 | C186: 农村基础设施 | D186: 其他 | E186: 草尾镇 | F186: 三码头村 | G186: 草尾镇三码头村-基础设施-渠道梳洗项目 | H186: 改扩建 | I186: 三码头村五组、三码头村一组 | J186: 2022-03-01 | K186: 2022-12-01 | L186: 乡村振兴局 | M186: 1500米 | N186: =O186+P186+Q186+R186 -> 15 | O186: 15 | R186: 0 | S186: 1 | T186: 344 | U186: 1080 | V186: 1 | W186: 42 | X186: 156 | Y186: 项目带动脱贫人口直接受益156人 | Z186: 提高群众生产生活水平
A187: 18 | B187: 乡村建设行动 | C187: 农村基础设施 | D187: 其他 | E187: 草尾镇 | F187: 三码头村 | G187: 草尾镇三码头村-基础设施-电排维修项目 | H187: 改扩建 | I187: 三码头村 | J187: 2022-02-01 | K187: 2022-12-01 | L187: 乡村振兴局 | M187: 1处 | N187: =O187+P187+Q187+R187 -> 15 | O187: 15 | R187: 0 | S187: 1 | T187: 928 | U187: 2783 | V187: 1 | W187: 113 | X187: 353 | Y187: 项目带动脱贫人口直接受益353人 | Z187: 提高群众生产生活水平
A188: 19 | B188: 乡村建设行动 | C188: 农村基础设施 | D188: 其他 | E188: 草尾镇 | F188: 上码头村 | G188: 草尾镇上码头村-基础设施-机埠维修项目 | H188: 改扩建 | I188: 上码头村 | J188: 2022-03-01 | K188: 2022-12-01 | L188: 乡村振兴局 | M188: 2座 | N188: =O188+P188+Q188+R188 -> 10 | O188: 10 | R188: 0 | S188: 1 | T188: 350 | U188: 780 | V188: 1 | W188: 32 | X188: 72 | Y188: 项目带动脱贫人口直接受益72人 | Z188: 提高群众生产生活水平 | AB188: 沅振发〔2022〕1号 | AC188: 10 | AD188: 沅财农指〔2022〕2号
A189: 20 | B189: 乡村建设行动 | C189: 农村基础设施 | D189: 其他 | E189: 草尾镇 | F189: 上码头村 | G189: 草尾镇上码头村-基础设施-渠道疏洗修项目 | H189: 改扩建 | I189: 上码头村 | J189: 2022-03-01 | K189: 2022-06-01 | L189: 乡村振兴局 | M189: 5000米 | N189: =O189+P189+Q189+R189 -> 18 | O189: 15 | R189: 3 | S189: 1 | T189: 600 | U189: 1120 | V189: 1 | W189: 36 | X189: 85 | Y189: 项目带动脱贫人口直接受益85人 | Z189: 提高群众生产生活水平
A190: 21 | B190: 乡村建设行动 | C190: 农村基础设施 | D190: 其他 | E190: 草尾镇 | F190: 四民村 | G190: 草尾镇四民村-基础设施-渠道疏洗修项目 | H190: 改扩建 | I190: 四民村 | J190: 2022-04-01 | K190: 2022-12-01 | L190: 乡村振兴局 | M190: 2公里 | N190: =O190+P190+Q190+R190 -> 15 | O190: 10 | R190: 5 | S190: 1 | T190: 300 | U190: 800 | V190: 1 | W190: 20 | X190: 80 | Y190: 项目带动脱贫人口直接受益80人 | Z190: 提高群众生产生活水平
A191: 22 | B191: 乡村建设行动 | C191: 农村基础设施 | D191: 农村道路建设 | E191: 草尾镇 | F191: 熙福村 | G191: 草尾镇熙福村-基础设施-道路硬化项目 | H191: 新建 | I191: 熙福村 | J191: 2022-03-01 | K191: 2022-12-01 | L191: 乡村振兴局 | M191: 1500米 | N191: =O191+P191+Q191+R191 -> 20 | O191: 20 | R191: 0 | S191: 1 | T191: 80 | U191: 280 | V191: 1 | W191: 6 | X191: 22 | Y191: 项目带动脱贫人口直接受益22人 | Z191: 方便群众出行
A192: 23 | B192: 乡村建设行动 | C192: 农村基础设施 | D192: 其他 | E192: 草尾镇 | F192: 熙福村 | G192: 草尾镇熙福村-基础设施-沟渠护坡 | H192: 新建 | I192: 熙福村 | J192: 2022-03-01 | K192: 2022-12-01 | L192: 乡村振兴局 | M192: 2500米 | N192: =O192+P192+Q192+R192 -> 20 | O192: 20 | R192: 0 | S192: 1 | T192: 700 | U192: 2200 | V192: 1 | W192: 55 | X192: 125 | Y192: 项目带动脱贫人口直接受益125人 | Z192: 农田灌浇
A193: 24 | B193: 乡村建设行动 | C193: 农村基础设施 | D193: 其他 | E193: 草尾镇 | F193: 熙福村 | G193: 草尾镇熙福村-基础设施-机部更换项目 | H193: 改扩建 | I193: 熙福村 | J193: 2022-02-01 | K193: 2022-12-01 | L193: 乡村振兴局 | M193: 2个 | N193: =O193+P193+Q193+R193 -> 10 | O193: 10 | R193: 0 | S193: 1 | T193: 1200 | U193: 4500 | V193: 1 | W193: 128 | X193: 428 | Y193: 项目带动脱贫人口直接受益428人 | Z193: 抗旱排渍 | AB193: 沅振发〔2022〕1号 | AC193: 10 | AD193: 沅财农指〔2022〕2号
A194: 25 | B194: 乡村建设行动 | C194: 农村基础设施 | D194: 其他 | E194: 草尾镇 | F194: 熙福村 | G194: 草尾镇熙福村-基础设施-渠道清污项目 | H194: 改扩建 | I194: 熙福村 | J194: 2022-02-01 | K194: 2022-12-01 | L194: 乡村振兴局 | M194: 2500米 | N194: =O194+P194+Q194+R194 -> 10 | O194: 8 | R194: 2 | S194: 1 | T194: 200 | U194: 720 | V194: 1 | W194: 10 | X194: 35 | Y194: 项目带动脱贫人口直接受益35人 | Z194: 农田灌浇
A195: 26 | B195: 乡村建设行动 | C195: 农村基础设施 | D195: 农村道路建设 | E195: 草尾镇 | F195: 熙和村 | G195: 草尾镇熙和村-基础设施-道路新建项目 | H195: 新建 | I195: 熙和村 | J195: 2022-01-01 | K195: 2022-12-01 | L195: 乡村振兴局 | M195: 2000米 | N195: =O195+P195+Q195+R195 -> 20 | O195: 20 | R195: 0 | S195: 1 | T195: 1200 | U195: 3756 | V195: 1 | W195: 55 | X195: 127 | Y195: 项目带动脱贫人口直接受益127人 | Z195: 提高群众生产生活水平
A196: 27 | B196: 乡村建设行动 | C196: 农村基础设施 | D196: 其他 | E196: 草尾镇 | F196: 熙和村 | G196: 草尾镇熙和村-基础设施-危桥改造项目 | H196: 新建 | I196: 熙和村 | J196: 2022-01-01 | K196: 2022-12-01 | L196: 乡村振兴局 | M196: 1座 | N196: =O196+P196+Q196+R196 -> 40 | O196: 40 | R196: 0 | S196: 1 | T196: 700 | U196: 2146 | V196: 1 | W196: 51 | X196: 116 | Y196: 项目带动脱贫人口直接受益116人 | Z196: 提高群众生产生活水平
A197: 28 | B197: 乡村建设行动 | C197: 农村基础设施 | D197: 农村道路建设 | E197: 草尾镇 | F197: 熙和村 | G197: 草尾镇熙和村-基础设施-公路维修项目 | H197: 改扩建 | I197: 熙和村 | J197: 2022-01-01 | K197: 2022-12-01 | L197: 乡村振兴局 | M197: 170米 | N197: =O197+P197+Q197+R197 -> 8 | O197: 8 | R197: 0 | S197: 1 | T197: 21 | U197: 77 | V197: 1 | W197: 15 | X197: 43 | Y197: 项目带动脱贫人口直接受益43人 | Z197: 提高群众生产生活水平 | AB197: 沅振发〔2022〕1号 | AC197: 5 | AD197: 沅财农指〔2022〕2号
A198: 29 | B198: 乡村建设行动 | C198: 农村基础设施 | D198: 其他 | E198: 草尾镇 | F198: 新安村 | G198: 草尾镇新安村-基础设施-机部维修项目 | H198: 改扩建 | I198: 新安村 | J198: 2022-03-01 | K198: 2022-12-01 | L198: 乡村振兴局 | M198: 十处 | N198: =O198+P198+Q198+R198 -> 20 | O198: 15 | R198: 5 | S198: 1 | T198: 528 | U198: 1750 | V198: 1 | W198: 59 | X198: 106 | Y198: 项目带动脱贫人口直接受益106人 | Z198: 提高群众生产生活水平
A199: 30 | B199: 乡村建设行动 | C199: 农村基础设施 | D199: 其他 | E199: 草尾镇 | F199: 新安村 | G199: 草尾镇新安村-基础设施-新建机埠项目 | H199: 新建 | I199: 新安村十二支渠 | J199: 2022-03-01 | K199: 2022-12-01 | L199: 乡村振兴局 | M199: 一处 | N199: =O199+P199+Q199+R199 -> 15 | O199: 12 | R199: 3 | S199: 1 | T199: 384 | U199: 1427 | V199: 1 | W199: 28 | X199: 67 | Y199: 项目带动脱贫人口直接受益67人 | Z199: 提高群众生产生活水平
A200: 31 | B200: 乡村建设行动 | C200: 农村基础设施 | D200: 其他 | E200: 草尾镇 | F200: 新安村 | G200: 草尾镇新安村-基础设施-渠道梳洗项目 | H200: 改扩建 | I200: 十二支区三、四横渠向阳区 | J200: 2022-03-01 | K200: 2022-12-01 | L200: 乡村振兴局 | M200: 四处 | N200: =O200+P200+Q200+R200 -> 20 | O200: 15 | R200: 5 | S200: 1 | T200: 821 | U200: 2874 | V200: 1 | W200: 43 | X200: 121 | Y200: 项目带动脱贫人口直接受益121人 | Z200: 提高群众生产生活水平
A201: 32 | B201: 乡村建设行动 | C201: 农村基础设施 | D201: 农村道路建设 | E201: 草尾镇 | F201: 新安村 | G201: 草尾镇新安村-基础设施-公路维护项目 | H201: 改扩建 | I201: 九、十、十一、草阳渠 | J201: 2022-03-01 | K201: 2022-12-01 | L201: 乡村振兴局 | M201: 1050米 | N201: =O201+P201+Q201+R201 -> 15 | O201: 10 | R201: 5 | S201: 1 | T201: 821 | U201: 2874 | V201: 1 | W201: 43 | X201: 121 | Y201: 项目带动脱贫人口直接受益121人 | Z201: 提高群众生产生活水平
A202: 33 | B202: 乡村建设行动 | C202: 农村基础设施 | D202: 其他 | E202: 草尾镇 | F202: 立新村 | G202: 草尾镇立新村-基础设施-机部维修项目 | H202: 改扩建 | I202: 立新村 | J202: 2022-03-01 | K202: 2022-12-01 | L202: 乡村振兴局 | M202: 十五处 | N202: =O202+P202+Q202+R202 -> 5 | O202: 5 | R202: 0 | S202: 1 | T202: 528 | U202: 1750 | V202: 1 | W202: 59 | X202: 106 | Y202: 项目带动脱贫人口直接受益106人 | Z202: 提高群众生产生活水平 | AB202: 沅振发〔2022〕1号 | AC202: 5 | AD202: 沅财农指〔2022〕2号
... 831 more rows
